Cogmind - Beta 17 @@@ ROGUE MODE // 2026.07.04 @ 21:05:38 // Winter2019/RPGLIKE Player: Willow Result: Destroyed by TH-DR0N3 "Hotstuff" with Thermal Shotgun Performance ------------- Evolutions (8) 4000 Regions Visited (30) 6000 Robots Destroyed (637) 3185 Value Destroyed (29595) 29595 Prototype IDs (104) 2080 Alien Tech Used (2) 400 Bonus (17243) 17243 TOTAL SCORE: 62503 Bonus ------- Triggered High Security 500 High Alert Combat Kills 3996 Follower Combat Kills 2419 Hunted by Unchained 500 Entered Garrisons 400 Network Hubs Disabled 600 Registered with UFD 300 Met Optimus in HQ 500 Met Data Miner 300 Met Warlord at Base 500 MAIN.C Attacked Warlord 500 Warlord Defense Kills 4444 Built Enhanced Grunts 300 Met R17 at Cetus 500 Met R17 at Research 2000 Friendly Fire -516 Cogmind --------- Core Integrity 0/1350 Matter 184/400 Energy 1150/1150 System Corruption 0% Temperature Cool (49) Movement Treading (88) Location -2/Research Parts ------- > --- POWER (3) -------- Singularity Reactor > --- PROPULSION (4) --- Wartreads Wartreads Wartreads Biometal Medium Treads > --- UTILITY (13) ----- Long-range Sensor Array Experimental Signal Interpreter Weapon Mount Experimental Core Analyzer Improved Kinecellerator Expert System (Swarmer) Advanced Transmission Jammer Advanced Phase Shifter Advanced Hacking Suite System Mapper Advanced System Shield Tech Extrapolator Advanced Corruption Screen > --- WEAPON (4) ------- Advanced KE Penetrator Advanced KE Penetrator Advanced KE Penetrator Helical Railgun > --- INVENTORY (8) ---- Improved Armor Integrity Analyzer Advanced Weapon Cycler Advanced Point Defense System Dimensional Node Initializer High-powered Transdimensional Reconstructor Subatomic Replicator Ragnarok Missile Launcher Peak State ------------ > --- POWER ------------ Singularity Reactor > --- PROPULSION ------- Wartreads Wartreads Wartreads Biometal Medium Treads > --- UTILITY ---------- Long-range Sensor Array Experimental Signal Interpreter Experimental Terrain Scan Processor Weapon Mount Experimental Core Analyzer Improved Kinecellerator Expert System Advanced Phase Shifter Advanced Hacking Suite System Mapper Advanced System Shield Tech Extrapolator Advanced Corruption Screen > --- WEAPON ----------- Advanced KE Penetrator Advanced KE Penetrator Advanced KE Penetrator Helical Railgun > --- INVENTORY -------- Improved Armor Integrity Analyzer Advanced Weapon Cycler Advanced EM Shield Advanced Point Defense System Dimensional Node Initializer High-powered Transdimensional Reconstructor Subatomic Replicator Ragnarok Missile Launcher [Rating: 192] Favorites ----------- Power F-cell Engine Engine F-cell Engine Reactor Quantum Reactor Propulsion Wartreads Treads Wartreads Wheel Wheel Utility Expert System Device Weapon Mount Storage Experimental Energy Well Processor Expert System Hackware System Mapper Protection Hardened Medium Armor Plating Weapon Advanced KE Penetrator Energy Gun Small Laser Energy Cannon Advanced Plasma Cannon Ballistic Gun Advanced KE Penetrator Launcher Heavy Rocket Launcher Special Weapon CPS Tube Build | -11 -10 -10 -9 -9 -8 -8 -8 -8 -6 -6 -6 -6 -5 -5 -5 -5 -5 -4 -4 -4 -4 -4 -4 -4 -4 -4 -3 -3 -3 -2 ------- Run | Yrd Mat Min Mat Min Mat Sto Rec Scr Fac Low Low Dat Pro Fac Upp Upp War Pro Fac Was Fac Ext Cet Arc Hub Gar Res Qua Gar Res Slots Evolved 20 | 3 3 . 2 1 2 1 . 1 1 1 . . . 1 . . . . . . 2 . 1 . . . . . . 1 Power 2 | . . . . . . . . . . . . . . . . . . . . . . . 1 . . . . . . 1 Propulsion 3 | 1 . . 1 . . . . . . . . . . . . . . . . . 1 . . . . . . . . . Utility 12 | 1 2 . 1 . 2 1 . 1 1 1 . . . 1 . . . . . . 1 . . . . . . . . . Weapon 3 | 1 1 . . 1 . . . . . . . . . . . . . . . . . . . . . . . . . . Parts Attached 128 | 6 5 . 18 1 9 4 . 6 13 4 2 . 1 7 . . 3 . 10 1 15 1 4 . 1 1 7 3 . 6 Power 10 | 1 . . 2 . . . . . 2 . . . . . . . . . . . 1 . 1 . . . 1 . . 2 Engine 5 | 1 . . 2 . . . . . 2 . . . . . . . . . . . . . . . . . . . . . Core . | . . . . . . . . . . . . . . . . . . . . . . . . . . . . . . . Reactor 5 | . . . . . . . . . . . . . . . . . . . . . 1 . 1 . . . 1 . . 2 Propulsion 20 | 2 . . 5 . 2 . . 1 . . . . . 1 . . . . 1 . 6 . . . . . 1 1 . . Treads 16 | 1 . . 5 . 2 . . . . . . . . 1 . . . . 1 . 4 . . . . . 1 1 . . Leg . | . . . . . . . . . . . . . . . . . . . . . . . . . . . . . . . Wheel 4 | 1 . . . . . . . 1 . . . . . . . . . . . . 2 . . . . . . . . . Hover . | . . . . . . . . . . . . . . . . . . . . . . . . . . . . . . . Flight . | . . . . . . . . . . . . . . . . . . . . . . . . . . . . . . . Utility 58 | 1 3 . 5 . 3 2 . 3 7 3 1 . . 1 . . 3 . 6 . 8 1 . . 1 1 4 2 . 3 Device 21 | 1 . . . . 1 1 . . 4 1 1 . . . . . 1 . 3 . 2 . . . . 1 3 . . 2 Storage 2 | . . . . . . . . 1 . . . . . . . . . . . . . 1 . . . . . . . . Processor 16 | . 2 . 2 . . 1 . 2 2 . . . . . . . 1 . . . 1 . . . 1 . 1 2 . 1 Hackware 15 | . 1 . . . 1 . . . 1 2 . . . 1 . . 1 . 3 . 5 . . . . . . . . . Protection 4 | . . . 3 . 1 . . . . . . . . . . . . . . . . . . . . . . . . . Artifact . | . . . . . . . . . . . . . . . . . . . . . . . . . . . . . . . Weapon 40 | 2 2 . 6 1 4 2 . 2 4 1 1 . 1 5 . . . . 3 1 . . 3 . . . 1 . . 1 Energy Gun 3 | 1 1 . 1 . . . . . . . . . . . . . . . . . . . . . . . . . . . Energy Cannon 4 | . . . . . . . . . 2 . . . . 1 . . . . . . . . . . . . 1 . . . Ballistic Gun 27 | 1 1 . 5 1 3 2 . . 2 . 1 . 1 3 . . . . 3 . . . 3 . . . . . . 1 Ballistic Cannon . | . . . . . . . . . . . . . . . . . . . . . . . . . . . . . . . Launcher 4 | . . . . . 1 . . 1 . 1 . . . 1 . . . . . . . . . . . . . . . . Special Weapon 2 | . . . . . . . . 1 . . . . . . . . . . . 1 . . . . . . . . . . Impact Weapon . | . . . . . . . . . . . . . . . . . . . . . . . . . . . . . . . Slashing Weapon . | . . . . . . . . . . . . . . . . . . . . . . . . . . . . . . . Piercing Weapon . | . . . . . . . . . . . . . . . . . . . . . . . . . . . . . . . Special Melee Weapon . | . . . . . . . . . . . . . . . . . . . . . . . . . . . . . . . Unidentified Prototypes 19 | . . . 1 . . . . 1 1 . 1 . . . . . 3 . . . 1 1 1 . . . 2 4 . 3 Parts Lost 6 | . . . 1 . . . . . 1 . . . . . . . . . . . 4 . . . . . . . . . Power . | . . . . . . . . . . . . . . . . . . . . . . . . . . . . . . . Propulsion 4 | . . . . . . . . . . . . . . . . . . . . . 4 . . . . . . . . . Utility 2 | . . . 1 . . . . . 1 . . . . . . . . . . . . . . . . . . . . . Weapon . | . . . . . . . . . . . . . . . . . . . . . . . . . . . . . . . Highest Loss Streak 2 | . . . 1 . . . . . 1 . . . . . . . . . . . 2 . . . . . . . . . To Critical Strikes . | . . . . . . . . . . . . . . . . . . . . . . . . . . . . . . . Average Backups 3 | . . 1 1 1 1 2 2 1 3 3 2 3 3 3 4 4 4 4 4 3 3 4 4 4 4 4 3 5 7 7 Power . | . . . . . . . . . . . . . . . . . . . . . . 1 . . . . . . . . Propulsion . | . . . . . . . . . . . . . . . . . . . . . . . . . . . . . . . Utility 2 | . . 1 1 1 1 1 1 . 2 2 2 2 2 2 3 3 3 3 3 2 1 2 3 3 3 3 2 3 3 3 Weapon . | . . . . . . 1 1 1 . . . 1 1 1 1 1 1 1 1 1 1 1 1 1 1 1 1 1 1 1 Tool/Special . | . . . . . . . . . . . . . . . . . . . . . . . . . . . . . . . Unused Backups 19 | . . . 1 . . . . . 2 . . . . 2 . . . . . 1 1 . . . 1 . 2 1 1 7 Power 2 | . . . . . . . . . 1 . . . . 1 . . . . . . . . . . . . . . . . Propulsion 1 | . . . . . . . . . . . . . . . . . . . . . 1 . . . . . . . . . Utility 12 | . . . 1 . . . . . 1 . . . . 1 . . . . . 1 . . . . 1 . 2 1 . 4 Weapon . | . . . . . . . . . . . . . . . . . . . . . . . . . . . . . . . Tool/Special 4 | . . . . . . . . . . . . . . . . . . . . . . . . . . . . . 1 3 Average Slot Usage (%) 97 | . 90 100 97 99 99 100 100 96 99 99 94 100 99 95 95 95 94 95 94 95 93 99 99 100 100 100 99 99 100 94 Engine 3 | . 12 10 7 7 6 6 6 5 5 5 5 5 5 5 5 5 5 5 5 5 . . . . . . . . . . Reactor 2 | . . . . . . . . . . . . . . . . . . . . . 3 4 5 8 8 8 7 8 8 5 Treads 11 | . 12 10 15 15 13 12 12 10 11 10 10 10 10 5 5 5 5 5 5 5 6 18 17 17 17 17 17 17 17 16 Wheel 4 | . 12 10 8 7 6 6 6 5 5 5 5 5 5 5 5 5 5 5 5 5 6 . . . . . . . . . Device 17 | . 12 10 . . 3 7 12 10 19 26 20 26 26 25 25 25 20 20 20 25 20 22 21 21 19 17 16 17 17 20 Processor 20 | . 8 20 23 24 20 19 18 17 23 21 21 21 21 20 20 20 24 25 23 20 19 18 17 17 18 21 21 20 21 20 Hackware 11 | . 2 10 8 7 12 12 12 11 10 6 10 10 10 14 15 15 15 15 15 15 16 13 13 13 13 13 13 13 13 12 Protection 1 | . . . 6 7 6 6 6 4 . . . . . . . . . . . . . . . . . . . . . . Energy Cannon 3 | . . . . . . . . . 4 2 5 5 5 5 5 5 4 5 4 5 4 4 4 4 4 3 4 4 4 . Ballistic Gun 16 | . 14 20 23 26 26 25 25 16 17 15 15 15 14 14 15 15 15 15 15 14 13 13 12 13 13 13 13 13 13 16 Peak Build Rating 192 | 6 12 12 24 26 42 49 49 58 81 89 99 91 92 107 104 104 115 111 125 123 149 147 156 156 158 162 169 179 179 192 Average Rating 102 | 4 8 12 22 24 36 44 49 49 75 83 93 91 91 102 104 104 110 111 117 121 131 146 150 156 156 159 162 171 177 186 On Entrance 94 | . 6 12 12 24 26 42 49 49 58 81 89 91 91 92 104 104 104 111 111 122 122 137 147 156 156 158 160 167 179 177 Avg Prop Armor Cover (%) 10 | 10 11 9 13 13 11 12 14 13 13 11 12 12 12 9 7 7 9 8 9 10 10 7 4 4 4 4 3 . . 4 Naked Turns . | . . . . . . . . . . . . . . . . . . . . . . . . . . . . . . . Heaviest Build 89 | 9 11 11 24 25 32 32 32 39 50 51 52 52 56 60 52 52 52 44 52 49 59 58 70 70 70 73 76 76 76 89 Greatest Support 105 | 20 20 20 45 45 45 45 45 45 50 20 50 20 20 80 80 80 20 80 80 80 85 70 70 70 70 70 105 105 105 105 Greatest Overweight (x) 4 | . 1 1 1 1 2 2 2 2 3 2 2 2 2 2 2 2 2 2 2 2 4 1 . . . 1 1 . . . Average Overweight (x) 1 | . . . . . 1 1 1 1 1 2 1 2 2 1 1 1 1 1 1 1 1 . . . . . . . . . Largest Inventory Capacity 8 | 1 1 1 3 4 4 4 4 4 4 4 4 4 4 6 6 6 6 6 6 6 6 6 6 6 6 6 6 8 8 8 Average Capacity 5 | 1 1 1 2 3 4 4 4 4 4 4 4 4 4 4 6 6 6 6 6 6 6 6 6 6 6 6 6 6 8 8 Most Carried 8 | . 1 1 3 4 4 4 4 4 4 4 4 3 4 6 6 6 6 6 6 6 6 6 6 6 6 6 6 8 8 8 Average Carried 4 | . . 1 2 3 3 4 4 3 3 3 3 3 3 4 5 5 5 6 5 5 4 5 5 6 5 5 5 6 7 7 Final Capacity 8 | 1 1 1 3 4 4 4 4 4 4 4 4 4 4 6 6 6 6 6 6 6 6 6 6 6 6 6 6 8 8 8 Final Carried 8 | . 1 1 3 4 4 4 4 3 4 4 3 3 3 5 5 6 6 6 5 6 5 5 6 6 6 6 6 8 8 7 Class Distribution -------------------- 48% | Hacker-Gunner 42% | Wizard-Gunner 7% | Commander-Gunner Dominant Class ---------------- Mutant | -10/Materials Hacker-Gunner | -10/Mines Hacker-Gunner | -9/Materials Hacker-Gunner | -9/Mines Hacker-Gunner | -8/Materials Hacker-Gunner | -8/Storage Commander-Gunner | -8/Recycling Commander-Gunner | -8/Scraptown Hacker-Gunner | -6/Factory Hacker-Gunner | -6/Lower Caves Hacker-Gunner | -6/Lower Caves Hacker-Gunner | -6/Data Miner Hacker-Gunner | -5/Proximity Caves Hacker-Gunner | -5/Factory Hacker-Gunner | -5/Upper Caves Hacker-Gunner | -5/Upper Caves Wizard-Gunner | -5/Warlord Wizard-Gunner | -4/Proximity Caves Wizard-Gunner | -4/Factory Hacker-Gunner | -4/Waste Wizard-Gunner | -4/Factory Wizard-Gunner | -4/Extension Wizard-Gunner | -4/Cetus Wizard-Gunner | -4/Archives Wizard-Gunner | -4/Hub_04(d) Wizard-Gunner | -4/Garrison Wizard-Gunner | -3/Research Wizard-Gunner | -3/Quarantine Wizard-Gunner | -3/Garrison Wizard-Gunner | -2/Research Resources | -11 -10 -10 -9 -9 -8 -8 -8 -8 -6 -6 -6 -6 -5 -5 -5 -5 -5 -4 -4 -4 -4 -4 -4 -4 -4 -4 -3 -3 -3 -2 ----------- Run | Yrd Mat Min Mat Min Mat Sto Rec Scr Fac Low Low Dat Pro Fac Upp Upp War Pro Fac Was Fac Ext Cet Arc Hub Gar Res Qua Gar Res Matter Collected 17061 | 261 508 84 1225 125 814 536 94 514 995 300 2332 . 102 713 367 204 716 348 545 620 834 578 307 82 70 436 573 537 670 1571 Remotely . | . . . . . . . . . . . . . . . . . . . . . . . . . . . . . . . Salvage Created 28730 | 103 948 154 1478 231 1213 852 359 426 2185 621 1130 . 153 1776 1248 529 1893 922 585 1237 1103 1450 425 113 123 746 624 1235 2154 2714 Parts 1555 | 7 59 7 110 23 86 56 20 36 106 33 33 . 13 83 42 21 83 36 67 17 70 70 21 8 8 57 19 90 99 175 Haulers Intercepted 13 | . 2 . 5 . 1 1 . . 2 . . . . 1 . . . . 1 . . . . . . . . . . . Recyclers Shooed 12 | . 1 . . . . 1 . . 1 . . . . 3 . . . . . . 1 3 . . . . 1 1 . . Parts Field Recycled . | . . . . . . . . . . . . . . . . . . . . . . . . . . . . . . . Retrieved Matter . | . . . . . . . . . . . . . . . . . . . . . . . . . . . . . . . Parts Self-Destructed 178 | . . . . . . . . . . 32 37 . 12 . 42 22 . 33 . . . . . . . . . . . . Prevented 5 | . . . . . . . . . . 2 . . 2 . . 1 . . . . . . . . . . . . . . Parts Restored . | . . . . . . . . . . . . . . . . . . . . . . . . . . . . . . . Kills | -11 -10 -10 -9 -9 -8 -8 -8 -8 -6 -6 -6 -6 -5 -5 -5 -5 -5 -4 -4 -4 -4 -4 -4 -4 -4 -4 -3 -3 -3 -2 ------- Run | Yrd Mat Min Mat Min Mat Sto Rec Scr Fac Low Low Dat Pro Fac Upp Upp War Pro Fac Was Fac Ext Cet Arc Hub Gar Res Qua Gar Res Combat Hostiles Destroyed 563 | . 25 7 38 7 34 17 5 9 39 16 10 . 9 34 18 13 40 17 26 5 25 26 6 3 2 23 8 23 27 51 Melee 1 | . . . . . . . . . . . . . . . . . . . . . 1 . . . . . . . . . Guns 423 | . 25 7 38 7 32 17 5 9 33 8 5 . 6 23 11 8 31 11 11 . 14 22 3 1 1 11 4 13 18 49 Cannons 93 | . . . . . . . . . 5 6 5 . . 7 6 4 5 5 5 3 6 2 3 2 1 5 3 10 9 1 AOE 30 | . . . . . 2 . . . . 2 . . 2 3 . . 2 . 8 . 4 . . . . 7 . . . . Classes Destroyed 32 | 2 5 1 4 . . 1 1 6 . 1 2 . . 1 . . 6 1 . 1 . . . . . . . . . . Worker 17 | . . . 1 . 2 2 . . 4 . . . . 4 . . . . 1 . 1 1 . . . . . 1 . . Builder 6 | . . . 1 . . 1 . . 1 . . . . 1 . . . . . . . . . . . . . 1 . 1 Tunneler 3 | 1 . . . 1 1 . . . . . . . . . . . . . . . . . . . . . . . . . Hauler 13 | . 2 . 5 . 1 1 . . 2 . . . . 1 . . . . 1 . . . . . . . . . . . Recycler 11 | 1 . . 1 . 1 1 1 . 1 . . . . 3 . . . . . . . . . . . . 1 . . 1 Minesweeper 1 | . . . . . . . . . . . 1 . . . . . . . . . . . . . . . . . . . Mechanic 1 | . . . . . . . . . . . . . . . . . 1 . . . . . . . . . . . . . Operator 4 | . 1 . . . . . . . . . . . . . . . . . 1 . . . . . . . 1 1 . . Drone 4 | . . . . . . . . . . . . . . . . . . 2 . . . . . . . . . . . 2 Watcher 20 | . 2 . 4 . 1 . . . 1 . . . . . . . . . 1 . 1 . 1 . . 1 . 2 . 6 Swarmer 148 | . 5 3 4 3 10 3 . . 12 7 . . 5 4 3 6 4 1 16 . 12 10 . . . 12 1 5 3 19 Saboteur 2 | . . . . . . . . . . . . . . . . . 2 . . . . . . . . . . . . . Grunt 194 | . 20 2 23 2 16 7 . . 12 4 4 . 4 12 11 5 21 7 1 . 1 8 . . . 5 1 11 11 6 Brawler 16 | . . . 1 . . . . . 3 1 5 . . 1 . . 2 2 . . . . . . . 1 . . . . Duelist 10 | . . . . . . . . . . 3 . . . . . . 1 3 . . . . . . . 1 . 1 . 1 Protector 3 | . . . . . . . . . . . . . . . . . 1 1 . . . . . . . 1 . . . . Sentry 77 | . . . 10 2 8 5 2 . 4 1 1 . . 3 2 1 . 1 4 . 5 7 . 3 2 . 2 . 7 7 Demolisher 2 | . . . . . . . . . . . . . . . . . 2 . . . . . . . . . . . . . Specialist 4 | . . . . . . . . . . . . . . 3 . . 1 . . . . . . . . . . . . . Hunter 26 | . . . . . . 2 1 . 1 . . . . 5 2 1 3 . . . . . . . . . 3 . 4 4 Programmer 47 | . . . . . . . 2 . 7 . . . . 6 . . 1 . 5 . 6 . . . . 1 . 6 1 12 Behemoth 5 | . . . . . . . . . . . . . . . . . 1 . . . 1 . . . . 2 . . 1 . Compactor 5 | . . . . . . . . . . . . . . . . . . . . 5 . . . . . . . . . . Cetus Guard 6 | . . . . . . . . . . . . . . . . . . . . . . . 6 . . . . . . . Striker 2 | . . . . . . . . . . . . . . . . . 1 . . . . . . . . . 1 . . . Federalist 3 | . . . . . . . . 3 . . . . . . . . . . . . . . . . . . . . . . Explorer 1 | . . . . . . . . 1 . . . . . . . . . . . . . . . . . . . . . . Ranger 1 | . . . . . . . . 1 . . . . . . . . . . . . . . . . . . . . . . Guru 1 | . . . . . . . . 1 . . . . . . . . . . . . . . . . . . . . . . Scientist 1 | . . . . . . . . 1 . . . . . . . . . . . . . . . . . . . . . . Scrapper 3 | . . . . . . . . 3 . . . . . . . . . . . . . . . . . . . . . . Decomposer 2 | . . . . . . . . . . . 2 . . . . . . . . . . . . . . . . . . . Samaritan 2 | . . . . . . . . . . . 1 . . . . . . 1 . . . . . . . . . . . . Assembled 2 | . . 2 . . . . . . . . . . . . . . . . . . . . . . . . . . . . Butcher 1 | . . . . . . . . . . . . . . . . . . . . . . 1 . . . . . . . . Best Kill Streak 12 | 2 4 3 8 5 12 6 2 8 6 5 4 . 5 11 10 5 12 4 10 2 6 5 5 3 1 9 3 7 6 11 Combat Bots Only 12 | . 4 3 8 5 9 6 2 8 4 5 4 . 5 9 10 5 12 4 9 2 5 5 4 3 1 9 3 4 6 9 Max Kills in Single Turn 6 | 1 2 2 2 2 3 2 1 1 3 1 1 . 2 3 2 2 2 2 6 1 4 2 2 1 1 4 1 3 2 3 Gunslinging 1 | . 1 . 1 . 1 1 . . 1 . . . 1 . . . 1 . 1 . 1 1 . . . 1 . . . 1 Exploded 5 | . . . . . 1 . . . . 1 . . 2 3 . . 2 . 5 . 4 . . . . 4 . . . . Melee 1 | . . . . . . . . . . . . . . . . . . . . . 1 . . . . . . . . . Uniques/NPCs Destroyed . | . . . . . . . . . . . . . . . . . . . . . . . . . . . . . . . Combat | -11 -10 -10 -9 -9 -8 -8 -8 -8 -6 -6 -6 -6 -5 -5 -5 -5 -5 -4 -4 -4 -4 -4 -4 -4 -4 -4 -3 -3 -3 -2 -------- Run | Yrd Mat Min Mat Min Mat Sto Rec Scr Fac Low Low Dat Pro Fac Upp Upp War Pro Fac Was Fac Ext Cet Arc Hub Gar Res Qua Gar Res Hostile Shots Fired 1866 | . 117 20 134 34 80 30 2 58 128 45 25 . 13 129 39 19 57 12 59 . 102 62 32 4 30 53 69 75 81 357 Missed 644 | . 36 6 50 8 30 10 . 10 48 15 10 . 3 41 6 3 25 4 19 . 33 17 8 2 11 18 19 23 31 158 Hits 1222 | . 81 14 84 26 50 20 2 48 80 30 15 . 10 88 33 16 32 8 40 . 69 45 24 2 19 35 50 52 50 199 Melee 15 | . . 1 . . . . . 1 2 . 2 . . . . . . 3 . . . . . . . . 5 . . 1 Projectile 1207 | . 81 13 84 26 50 20 2 47 78 30 13 . 10 88 33 16 32 5 40 . 69 45 24 2 19 35 45 52 50 198 AOE 9 | . . . . . . . . . . . . . . . . . 4 . 1 . 1 . . . . 2 1 . . . Critical Strikes 51 | . . . 1 2 1 . . 4 4 . . . 1 1 1 1 1 . 2 . 2 1 5 . . . . 2 1 21 Part Disruptions 6 | . . . . . . . . . . . 1 . . 1 . . . . . . . . . . . . . 1 . 3 Damage Taken 22466 | . 901 214 1089 286 638 296 28 851 1113 334 467 . 117 1301 391 209 709 220 857 . 1602 833 483 45 395 720 1484 1465 1172 4246 Core 17748 | . 727 178 838 195 471 197 21 658 892 254 363 . 92 1023 312 165 567 172 683 . 1287 652 378 40 318 582 1215 1169 942 3357 Absorbed by Shields 1529 | . . . . . . . . . 167 180 78 . 60 432 198 96 . . . . . 124 194 . . . . . . . Reduced by Siege Mode 3 | . . . . . . . . . . . . . . . 3 . . . . . . . . . . . . . . . Redirected to Core 15904 | . 552 129 657 165 443 197 21 614 767 254 363 . 81 940 261 151 508 172 616 . 1122 624 378 18 275 476 987 1086 823 3224 Regen/Repaired (Parts) 66 | . . . 9 . . . . . . . . . . . . . . . . . . . . . . . 57 . . . Core Remaining (%) 84 | 100 . 61 . 81 . . . 41 . . . . 100 . . . . 100 . . . . . . . 97 . . 93 . Volleys Fired 1307 | 5 90 14 98 11 56 31 5 19 114 24 35 . 7 69 27 18 50 29 56 33 73 44 17 6 22 45 60 66 55 128 Largest 4 | 2 3 3 3 3 4 4 4 4 4 4 4 . 4 4 4 4 4 4 4 4 4 4 4 4 4 4 4 4 4 4 Hottest 218 | 60 100 80 96 69 98 106 106 106 176 176 181 . 181 197 197 197 197 197 203 203 203 203 203 203 203 203 218 218 218 218 Shots Fired 4002 | 10 219 42 294 33 215 121 22 71 294 82 98 . 20 204 106 69 179 116 147 132 177 147 68 21 37 123 192 154 214 395 Gun 3250 | 10 219 42 294 33 213 121 22 70 214 63 63 . 15 139 81 51 144 87 93 99 108 114 51 18 15 84 137 99 162 389 Cannon 735 | . . . . . . . . . 80 16 35 . 3 63 25 18 33 29 52 33 68 33 17 3 22 37 55 55 52 6 Launcher 16 | . . . . . 2 . . . . 3 . . 2 2 . . 2 . 2 . 1 . . . . 2 . . . . Special 1 | . . . . . . . . 1 . . . . . . . . . . . . . . . . . . . . . . Kinetic 3086 | 5 98 28 270 33 213 121 22 70 214 63 63 . 15 139 81 51 144 87 93 99 108 114 51 18 15 84 137 99 162 389 Thermal 899 | 5 121 14 24 . . . . . 80 16 35 . 3 63 25 18 33 29 52 33 68 33 17 3 22 37 55 55 52 6 Explosive 11 | . . . . . 2 . . . . . . . . 2 . . 2 . 2 . 1 . . . . 2 . . . . Electromagnetic 5 | . . . . . . . . . . 3 . . 2 . . . . . . . . . . . . . . . . . Robot Hit Streak 82 | 3 13 10 36 17 27 29 42 48 40 27 49 . 12 28 28 51 27 28 64 48 27 52 82 9 15 15 47 50 42 28 Robot Miss Streak 5 | 2 5 2 3 1 2 1 . 2 2 2 1 . 1 2 1 2 2 1 1 1 1 1 1 1 1 1 1 3 2 4 Penetration Max 1 | . . . . . . 1 1 . 1 1 1 . 1 1 1 1 1 1 1 1 1 1 1 . . 1 . 1 1 1 Secondary Targets 71 | . 6 2 5 3 6 2 . 4 5 3 . . 2 . . . 1 . 1 . 3 4 . . . 2 . 3 2 17 Max Gunslinging Chain 2 | . 2 1 1 1 2 1 . 1 1 1 . . 2 . . . 1 . 1 . 1 2 . . . 2 . 1 1 2 Shots Hit Robots 2574 | 6 140 29 226 27 157 91 13 57 169 49 63 . 11 132 60 38 129 83 86 111 106 118 55 12 14 79 84 69 149 211 Core Hits 1148 | 3 55 12 84 10 72 36 9 20 85 24 29 . 13 76 37 20 79 42 43 12 42 50 26 6 6 39 22 38 56 102 Critical Kills 74 | . . . 1 . . . . . 4 . 2 . 1 3 3 2 4 4 2 2 . 3 . 1 . 3 5 6 8 20 Critical Parts Destroyed 72 | . 1 . 2 . 3 . . . 2 . . . . 3 1 . 4 3 1 1 1 . 3 1 2 7 5 8 7 17 Critical Strikes 169 | . 1 . 9 . 3 . . . 6 . 2 . 1 6 4 2 9 7 3 5 1 3 3 3 2 11 13 14 22 39 Burn 6 | . . . 6 . . . . . . . . . . . . . . . . . . . . . . . . . . . Meltdown 16 | . . . . . . . . . 1 . 1 . 1 1 1 1 1 1 2 2 . 2 . . . . 1 . 1 . Destroy 147 | . 1 . 3 . 3 . . . 5 . 1 . . 5 3 1 8 6 1 3 1 1 3 3 2 11 12 14 21 39 Melee Attacks . | . . . . . . . . . . . . . . . . . . . . . . . . . . . . . . . Impact . | . . . . . . . . . . . . . . . . . . . . . . . . . . . . . . . Slashing . | . . . . . . . . . . . . . . . . . . . . . . . . . . . . . . . Piercing . | . . . . . . . . . . . . . . . . . . . . . . . . . . . . . . . Sneak Attacks . | . . . . . . . . . . . . . . . . . . . . . . . . . . . . . . . Combat Hostiles . | . . . . . . . . . . . . . . . . . . . . . . . . . . . . . . . Follow-up Attacks . | . . . . . . . . . . . . . . . . . . . . . . . . . . . . . . . Damage Inflicted 82373 | 73 1810 398 3476 436 2841 1875 324 979 4522 1456 1749 . 581 5931 2301 1418 5974 2747 3974 3329 4189 4209 1928 390 388 4209 2527 3712 6263 8364 Guns 58203 | 73 1802 387 3439 425 2549 1838 324 979 3152 780 752 . 283 3289 1488 865 4067 1862 1686 2238 2250 3053 1399 291 257 2281 1578 2683 4016 8117 Cannons 17410 | . . . . . . . . . 955 470 997 . 103 1319 813 553 1150 885 1074 1091 1108 1053 529 99 131 714 913 1005 2247 201 Explosions 6322 | . . . . . 266 . . . 398 206 . . 195 1309 . . 757 . 1210 . 767 . . . . 1214 . . . . Melee . | . . . . . . . . . . . . . . . . . . . . . . . . . . . . . . . Ramming 438 | . 8 11 37 11 26 37 . . 17 . . . . 14 . . . . 4 . 64 103 . . . . 36 24 . 46 Kinetic 56748 | 41 780 251 3174 425 2549 1838 324 979 3152 780 752 . 283 3289 1488 865 4067 1862 1686 2238 2250 3053 1399 291 257 2281 1578 2683 4016 8117 Thermal 19263 | 32 1022 136 265 . . . . . 1353 470 997 . 103 1319 813 553 1150 885 1074 1091 1108 1053 529 99 131 714 913 1005 2247 201 Explosive 5523 | . . . . . 266 . . . . . . . . 1309 . . 757 . 1210 . 767 . . . . 1214 . . . . Electromagnetic 401 | . . . . . . . . . . 206 . . 195 . . . . . . . . . . . . . . . . . Impact . | . . . . . . . . . . . . . . . . . . . . . . . . . . . . . . . Slashing . | . . . . . . . . . . . . . . . . . . . . . . . . . . . . . . . Piercing . | . . . . . . . . . . . . . . . . . . . . . . . . . . . . . . . Highest Corruption 6 | . . . . . . 4 4 . 1 . 1 . . 1 . . . . 2 . 6 . . . . . . . . . Average Corruption 3 | . . . . . . 3 4 . 1 . 1 . . 1 . . . . 1 . 1 . . . . . . . . . Corruption Purged 14 | . . . . . . . . . 2 . 1 . . 1 . . . . 3 . 7 . . . . . . . . . Corruption Blocked 12 | . . . . . . . . . . . . . . . . . . . . . . . . . . . . 5 1 6 Effects 29 | . . . . . . 14 9 . 1 . 1 . . 1 . . . . 2 . 1 . . . . . . . . . Message Errors 8 | . . . . . . 3 1 . . . 1 . . . . . . . 2 . 1 . . . . . . . . . Matter Fused 6 | . . . . . . 5 1 . . . . . . . . . . . . . . . . . . . . . . . Heat Flow Errors 2 | . . . . . . . 1 . 1 . . . . . . . . . . . . . . . . . . . . . Energy Discharges 4 | . . . . . . 2 2 . . . . . . . . . . . . . . . . . . . . . . . Data Loss (minor) 1 | . . . . . . . 1 . . . . . . . . . . . . . . . . . . . . . . . Data Loss (major) 2 | . . . . . . 1 1 . . . . . . . . . . . . . . . . . . . . . . . Misfires 2 | . . . . . . . 2 . . . . . . . . . . . . . . . . . . . . . . . Weapon Failures 4 | . . . . . . 3 . . . . . . . 1 . . . . . . . . . . . . . . . . Overload Shots . | . . . . . . . . . . . . . . . . . . . . . . . . . . . . . . . Overflow Damage 878 | . . . 4 . . . . . 20 24 66 . . 165 38 . 27 67 170 . 90 . 22 . . 86 . 49 41 9 Projectiles 550 | . . . . . . . . . 15 24 66 . . 45 38 . 27 67 63 . 72 . 22 . . 12 . 49 41 9 Explosions 324 | . . . . . . . . . 5 . . . . 120 . . . . 107 . 18 . . . . 74 . . . . Melee 4 | . . . 4 . . . . . . . . . . . . . . . . . . . . . . . . . . . Knockbacks 3 | . . . . 1 . . . . . . . . . . . . . . . . . 1 . . . . 1 . . . Impact 3 | . . . . 1 . . . . . . . . . . . . . . . . . 1 . . . . 1 . . . Kinetic . | . . . . . . . . . . . . . . . . . . . . . . . . . . . . . . . Secondary . | . . . . . . . . . . . . . . . . . . . . . . . . . . . . . . . Self-Inflicted Damage 16 | . . . 11 . . . . . . . . . 5 . . . . . . . . . . . . . . . . . Shots 1 | . . . . . . . . . . . . . 1 . . . . . . . . . . . . . . . . . Rammed 39 | . 1 3 5 1 3 4 . . 3 . . . . 1 . . . . 1 . 4 7 . . . . 1 2 . 3 Targets Rammed 46 | . 1 3 5 2 4 7 . . 3 . . . . 1 . . . . 1 . 6 7 . . . . 1 2 . 3 Kicked . | . . . . . . . . . . . . . . . . . . . . . . . . . . . . . . . Crushed 7 | . . . . 1 1 3 . . . . . . . . . . . . . . 2 . . . . . . . . . Highest Temperature 456 | . 215 61 114 6 67 72 200 179 206 250 456 . 78 181 246 180 271 80 92 92 104 122 104 83 83 228 232 232 340 370 Average Temperature 60 | . 54 39 43 6 18 23 46 53 41 84 117 . 44 54 86 56 92 32 32 41 38 48 50 43 42 71 68 55 116 71 Received Heat Transfer 4662 | . 429 96 480 108 288 81 . 501 176 79 43 . 36 114 85 25 75 18 99 . 93 142 13 . 18 75 129 45 141 1273 Effects 1 | . . . . . . . . . . . . . . . . . . . . . . . . . . . . . 1 . Interference 1 | . . . . . . . . . . . . . . . . . . . . . . . . . . . . . 1 . Siege Activations 3 | . . . . . . . . . . . . . . . 2 1 . . . . . . . . . . . . . . Total Turns 22 | . . . . . . . . . . . . . . . 18 4 . . . . . . . . . . . . . . Longest Duration 11 | . . . . . . . . . . . . . . . 11 4 . . . . . . . . . . . . . . Martial Activations . | . . . . . . . . . . . . . . . . . . . . . . . . . . . . . . . Shielding Activations . | . . . . . . . . . . . . . . . . . . . . . . . . . . . . . . . Robots Disrupted . | . . . . . . . . . . . . . . . . . . . . . . . . . . . . . . . Combat Hostiles . | . . . . . . . . . . . . . . . . . . . . . . . . . . . . . . . Robots Corrupted 1 | . . . 1 . . . . . . . . . . . . . . . . . . . . . . . . . . . Combat Hostiles . | . . . . . . . . . . . . . . . . . . . . . . . . . . . . . . . Parts Fried 7 | . . . 3 . . . . . . 1 . . 2 . . . . . . . . . . . . . . . . 1 Impact Corruptions 1 | . . . 1 . . . . . . . . . . . . . . . . . . . . . . . . . . . Robots Melted 17 | . . . . . . . . . 1 . 1 . 1 1 1 1 2 1 2 2 . 2 . . . . 1 . 1 . Combat Hostiles 15 | . . . . . . . . . 1 . . . 1 1 1 1 2 1 2 2 . 1 . . . . 1 . 1 . Parts Melted 48 | . 2 . 1 . . . . 1 4 . . . 3 2 . 4 3 4 8 . 5 3 . 1 . 2 4 . 1 . Heat Transferred 25292 | 75 2250 300 1221 . . . . . 1507 700 1500 . 150 1850 1000 650 1225 1026 1500 1650 1500 1400 800 150 200 876 1172 703 1702 185 Parts Sabotaged 3 | . . . . . . . . . . . . . . . . . . . . . . . . . . . . . . 3 Parts Stolen . | . . . . . . . . . . . . . . . . . . . . . . . . . . . . . . . Parts Stripped . | . . . . . . . . . . . . . . . . . . . . . . . . . . . . . . . Power Chain Reactions . | . . . . . . . . . . . . . . . . . . . . . . . . . . . . . . . Alert | -11 -10 -10 -9 -9 -8 -8 -8 -8 -6 -6 -6 -6 -5 -5 -5 -5 -5 -4 -4 -4 -4 -4 -4 -4 -4 -4 -3 -3 -3 -2 ------- Run | Yrd Mat Min Mat Min Mat Sto Rec Scr Fac Low Low Dat Pro Fac Upp Upp War Pro Fac Was Fac Ext Cet Arc Hub Gar Res Qua Gar Res Maximum Alert Level 5 | . 1 . 2 1 2 2 2 . 3 . . . . 3 . . . . 2 . 2 2 2 1 1 3 3 1 3 5 Low Security (%) 26 | 100 71 100 16 85 8 7 24 . 21 . . . . 38 . . . . . 100 11 40 . 65 49 7 . 57 . . Level 1 32 | . 28 . 56 14 72 24 24 . 28 . . . . 38 . . . . 79 . 58 42 2 34 50 3 . 42 15 . Level 2 25 | . . . 26 . 19 67 51 . 38 . . . . 10 . . . . 20 . 29 16 97 . . 11 85 . 35 14 Level 3 10 | . . . . . . . . . 10 . . . . 11 . . . . . . . . . . . 77 14 . 48 31 Level 4 4 | . . . . . . . . . . . . . . . . . . . . . . . . . . . . . . 51 Level 5 . | . . . . . . . . . . . . . . . . . . . . . . . . . . . . . . . High Security . | . . . . . . . . . . . . . . . . . . . . . . . . . . . . . . 1 Max Security . | . . . . . . . . . . . . . . . . . . . . . . . . . . . . . . . Peak Influence 1982 | 5 346 154 506 226 583 562 576 . 713 . . . . 778 . . . . 568 159 591 676 536 333 368 1078 863 375 918 1982 Initial 606 | . . 84 . 171 56 121 196 . . . . . . . . . . . 379 159 . 158 368 164 . 163 606 323 273 516 Average 420 | 1 171 64 302 164 315 428 373 . 410 . . . . 316 . . . . 364 38 318 271 479 145 151 821 622 209 680 1071 Influence Increases 22909 | 10 758 125 1312 180 1050 651 578 . 1399 449 371 . 317 1530 400 295 955 335 1201 38 1974 1408 358 219 643 955 933 836 705 2924 Destroy 0b10 Robot/C 12420 | . 500 100 760 140 680 360 200 . 780 340 280 . 200 920 360 260 780 280 520 . 840 660 160 80 180 580 240 460 560 1200 Destroy 0b10 Robot/NC 515 | 10 25 . 60 5 30 25 20 . 45 . 10 . . 50 10 5 10 15 20 . 20 20 10 . 10 10 15 25 15 50 Destroy Leader 1994 | . 128 20 238 20 154 112 . . 176 20 20 . 20 184 30 30 . 10 114 . 172 66 . . 40 40 52 54 60 234 Allied During Kill 1878 | . . . . . . 76 166 . . 14 31 . 37 41 . . . . 40 . 356 488 170 80 105 163 2 . 22 87 Successful Hack 483 | . 15 5 27 . 16 . 4 . 115 . . . . 21 . . . . 8 . 30 15 4 . 28 6 96 79 . 14 Select Force Hacks 810 | . 60 . 120 . 120 60 180 . 60 . . . . 60 . . . . . . . . . . 150 . . . . . Disable Machine 540 | . . . . . . 15 . . 75 . . . . 60 . . . . 15 . 75 15 . 45 60 30 15 60 . 75 Destroy Structure 1919 | . . . 2 . 20 3 8 . 73 . . . . 94 . . . . 94 38 216 44 14 14 70 126 198 128 18 759 Advance Influence 300 | . . . . . . . . . . . . . . . . . . . 300 . . . . . . . . . . . Partial Spotted 45 | . 15 . . 15 . . . . . . . . . . . . . . . . . . . . . . . 15 . . Lose Combat Pursuer 1305 | . 15 . 105 . 30 . . . 75 75 30 . 60 . . . 165 30 90 . 165 . . . . . 15 15 30 405 Miscellaneous 700 | . . . . . . . . . . . . . . 100 . . . . . . 100 100 . . . . 300 . . 100 Influence Decreases 20927 | 10 540 343 872 475 907 433 612 472 715 670 692 142 317 762 665 351 619 991 872 494 1650 1074 604 631 410 110 1436 1046 152 1860 Entered New Map 5875 | . . 134 . 269 89 167 310 472 . 254 89 142 . . 285 97 447 783 48 297 . 166 290 248 . 70 472 252 92 402 Time Decay 9872 | 10 390 209 562 206 498 246 302 . 675 416 583 . 297 422 380 254 172 208 534 197 580 458 214 343 90 . 494 494 . 638 Search Patrol Dispatched 100 | . . . . . . . . . . . . . . . . . . . 100 . . . . . . . . . . . Lost Part 60 | . . . 10 . . . . . 10 . . . . . . . . . . . 40 . . . . . . . . . Lost Ally 1270 | . . . . . 20 20 . . 30 . 20 . 20 40 . . . . 40 . 280 . 100 40 320 40 20 . 60 220 Purge Threat 3750 | . 150 . 300 . 300 . . . . . . . . 300 . . . . 150 . 750 450 . . . . 450 300 . 600 Squads Dispatched 149 | . 9 1 10 . 7 3 . . 28 . 1 . . 17 . . . 1 9 . 16 3 . . 7 . 8 5 . 24 Investigation 74 | . 5 1 9 . 4 3 . . 9 . . . . 11 . . . . 5 . 8 3 . . 6 . 4 1 . 5 Extermination 25 | . . . . . . . . . 6 . . . . 3 . . . . 3 . 5 . . . . . . 3 . 5 Reinforcement 28 | . 4 . 1 . 2 . . . 2 . . . . 2 . . . . 1 . 2 . . . . . 4 1 . 9 Assault 14 | . . . . . 1 . . . 4 . 1 . . 1 . . . 1 . . 1 . . . . . . . . 5 Garrison 8 | . . . . . . . . . 7 . . . . . . . . . . . . . . . 1 . . . . . Intercept . | . . . . . . . . . . . . . . . . . . . . . . . . . . . . . . . Searches Triggered 1 | . . . . . . . . . . . . . . . . . . . 1 . . . . . . . . . . . Data Miner Redirects 2 | . . . . . . . . . . . . . . . . . . . . . 1 . . . . . . . . 1 Construction Impeded 1 | . . . . . . . . . . . . . . . . . . . . . . . . . . . . . . 1 Haulers Reinforced 4 | . . . . . . . . . . . . . . 1 . . . . . . . . . . . . 1 . . 2 Active Scanning Responses . | . . . . . . . . . . . . . . . . . . . . . . . . . . . . . . . Cargo Convoy Interrupts 1 | . . . . . . . . . . . . . . 1 . . . . . . . . . . . . . . . . Stealth | -11 -10 -10 -9 -9 -8 -8 -8 -8 -6 -6 -6 -6 -5 -5 -5 -5 -5 -4 -4 -4 -4 -4 -4 -4 -4 -4 -3 -3 -3 -2 --------- Run | Yrd Mat Min Mat Min Mat Sto Rec Scr Fac Low Low Dat Pro Fac Upp Upp War Pro Fac Was Fac Ext Cet Arc Hub Gar Res Qua Gar Res Distress Signals 41 | . 3 . 3 . 4 3 . . 2 . . . . 2 . . . . 5 . 1 . 2 . 1 . 8 2 . 5 Communications Jammed 207 | . . . . . . . . . . . . . . . . . . . 1 . 15 124 . . . 1 . 8 . 58 Distress Signals 207 | . . . . . . . . . . . . . . . . . . . 1 . 15 124 . . . 1 . 8 . 58 Times Spotted 819 | . 38 5 53 7 44 18 1 18 56 21 15 . 12 46 18 10 72 18 37 6 59 33 10 4 6 31 28 30 30 93 Peak Tracking Total 19 | . 5 2 5 5 6 4 1 9 5 9 7 . 5 11 7 3 12 7 7 2 8 5 5 2 3 10 5 5 4 19 Tactical Retreats 43 | . 1 . 4 . 2 . . . 2 3 1 . 2 . . . 4 1 3 . 6 . . . . . 1 1 2 10 Traps | -11 -10 -10 -9 -9 -8 -8 -8 -8 -6 -6 -6 -6 -5 -5 -5 -5 -5 -4 -4 -4 -4 -4 -4 -4 -4 -4 -3 -3 -3 -2 ------- Run | Yrd Mat Min Mat Min Mat Sto Rec Scr Fac Low Low Dat Pro Fac Upp Upp War Pro Fac Was Fac Ext Cet Arc Hub Gar Res Qua Gar Res Traps Triggered 26 | . 2 . 4 . . 5 . . 4 . 1 . . . . . . . 4 . 4 . . . . . . 2 . . Indirectly . | . . . . . . . . . . . . . . . . . . . . . . . . . . . . . . . Trap Hack Attempts . | . . . . . . . . . . . . . . . . . . . . . . . . . . . . . . . Triggered . | . . . . . . . . . . . . . . . . . . . . . . . . . . . . . . . Disarmed . | . . . . . . . . . . . . . . . . . . . . . . . . . . . . . . . Reprogrammed . | . . . . . . . . . . . . . . . . . . . . . . . . . . . . . . . Reused 2 | . . . . . . . . 1 . . 1 . . . . . . . . . . . . . . . . . . . Traps Extracted . | . . . . . . . . . . . . . . . . . . . . . . . . . . . . . . . Installed 14 | . . . . . . . . 1 . . 13 . . . . . . . . . . . . . . . . . . . Triggered 1 | . . . . . . . . . . . 1 . . . . . . . . . . . . . . . . . . . Most Traps Carried 1 | . . . . . . . . 1 . . . . . . . . . . . . . . . . . . . . . . Machines | -11 -10 -10 -9 -9 -8 -8 -8 -8 -6 -6 -6 -6 -5 -5 -5 -5 -5 -4 -4 -4 -4 -4 -4 -4 -4 -4 -3 -3 -3 -2 ---------- Run | Yrd Mat Min Mat Min Mat Sto Rec Scr Fac Low Low Dat Pro Fac Upp Upp War Pro Fac Was Fac Ext Cet Arc Hub Gar Res Qua Gar Res Machines Disabled 45 | . . . . . . 1 . 3 5 . . . . 4 1 . 1 . 1 . 5 3 . 3 4 4 1 4 . 5 Max in Single Turn 2 | . . . . . . 1 . 1 2 . . . . 1 1 . 1 . 1 . 2 1 . 2 . 1 1 1 . 1 Garrison Access 6 | . . . . . . . . . 1 . . . . 1 . . . . 2 . 1 . . . . . . . . 1 Network Hub 3 | . . . . . . . . . . . . . . . . . . . . . . . . . 3 . . . . . Machines Repaired . | . . . . . . . . . . . . . . . . . . . . . . . . . . . . . . . Machines Dismantled . | . . . . . . . . . . . . . . . . . . . . . . . . . . . . . . . Machines Sabotaged 3 | . . . . . . . . . . . . . . . . . . . . . . . . . 3 . . . . . Overloaded Fab Kills . | . . . . . . . . . . . . . . . . . . . . . . . . . . . . . . . Hacking | -11 -10 -10 -9 -9 -8 -8 -8 -8 -6 -6 -6 -6 -5 -5 -5 -5 -5 -4 -4 -4 -4 -4 -4 -4 -4 -4 -3 -3 -3 -2 --------- Run | Yrd Mat Min Mat Min Mat Sto Rec Scr Fac Low Low Dat Pro Fac Upp Upp War Pro Fac Was Fac Ext Cet Arc Hub Gar Res Qua Gar Res Machines Accessed 206 | . 7 1 16 . 14 10 12 3 21 1 1 3 . 18 2 . 2 . 14 . 22 10 1 . 8 4 11 11 1 13 Terminals 120 | . 4 1 11 . 10 8 6 . 10 . . . . 6 1 . . . 6 . 13 9 1 . 7 4 7 8 1 7 Fabricators 18 | . . . . . . . . . 3 . . . . 5 . . . . 2 . 5 . . . . . 1 . . 2 Repair Stations 5 | . 1 . 1 . . . . . . . . . . 2 . . . . . . . . . . . . 1 . . . Recycling Units 28 | . 2 . 2 . 2 2 6 . 4 . . . . 2 . . . . 2 . 2 1 . . . . 1 . . 2 Scanalyzers 16 | . . . 2 . 2 . . . 3 . . . . 2 . . . . 2 . 1 . . . . . 1 2 . 1 Garrison Access 8 | . . . . . . . . . 1 . . . . 1 . . . . 2 . 1 . . . 1 . . 1 . 1 Total Hacks 699 | . 22 6 58 . 33 26 35 13 71 1 1 20 . 60 6 . 5 . 34 . 98 39 2 . 16 5 58 48 1 41 Successful 502 | . 17 3 44 . 29 21 23 13 47 1 1 20 . 46 6 . 5 . 21 . 74 25 1 . 14 4 33 31 1 22 Failed 195 | . 5 3 13 . 4 5 12 . 24 . . . . 14 . . . . 13 . 23 14 1 . 2 1 25 17 . 19 Catastrophic 14 | . . 1 . . . . . . 1 . . . . 1 . . . . 1 . 3 2 . . . . 2 1 . 2 Database Lockouts 2 | . . . 1 . . . . . . . . . . . . . . . . . 1 . . . . . . . . . Manual 357 | . 16 6 45 . 23 21 23 . 39 . . . . 37 . . 1 . 11 . 39 15 1 . 13 . 32 22 . 13 Terminals 506 | . 19 6 51 . 28 24 29 . 41 . . . . 26 5 . . . 20 . 73 38 2 . 15 5 50 43 1 30 Fabricators 60 | . . . . . . . . . 10 . . . . 17 . . . . 3 . 21 . . . . . 3 . . 6 Repair Stations 11 | . 1 . 1 . . . . . . . . . . 7 . . . . . . . . . . . . 2 . . . Recycling Units 34 | . 2 . 2 . 2 2 6 . 8 . . . . 3 . . . . 2 . 2 1 . . . . 1 . . 3 Scanalyzers 35 | . . . 4 . 3 . . . 10 . . . . 6 . . . . 4 . 1 . . . . . 2 4 . 1 Garrison Access 12 | . . . . . . . . . 2 . . . . 1 . . . . 5 . 1 . . . 1 . . 1 . 1 Terminal Hacks 243 | . 6 3 15 . 11 9 12 13 10 1 1 20 . 8 6 . 5 . 10 . 38 18 1 . 4 4 17 17 1 13 Record 19 | . . . . . . . . 4 . . . 3 . . 5 . 4 . . . . 1 . . . . . 2 . . Part Schematic 17 | . . 2 . . . . . . 1 . . 11 . . . . . . 1 . 1 . . . 1 . . . . . Robot Schematic 3 | . . . . . . . . . . . . 3 . . . . . . . . . . . . . . . . . . Robot Analysis 26 | . 1 1 3 . 1 2 1 8 . . . . . 1 . . . . 1 . 1 3 . . . . 1 2 . . Prototype ID Bank 47 | . 2 . 5 . 3 2 8 . 4 . . 3 . 1 . . . . 1 . 6 2 . . . . 4 4 . 2 Open Door 9 | . . . . . . 2 . . . 1 1 . . . 1 . 1 . 1 . 1 . 1 . . . . . . . Open DSF 1 | . . . . . . . . . . . . . . 1 . . . . . . . . . . . . . . . . Level Access Points 1 | . . . . . . . . . . . . . . . . . . . . . . . . . . . 1 . . . Branch Access Points 3 | . . . . . . 1 . . . . . . . . . . . . . . 1 . . . . . . . . 1 Emergency Access Points 3 | . . . . . . . . . 1 . . . . . . . . . . . . . . . . 1 . . 1 . Machine Index 3 | . . . . . . . . . . . . . . . . . . . . . 1 . . . . . 1 1 . . Terminal Index 8 | . 1 . 1 . . 1 1 . . . . . . . . . . . 1 . 1 1 . . 1 . . . . . Recycling Unit Index 6 | . . . 1 . 1 . 1 . . . . . . . . . . . . . . 1 . . 1 . . 1 . . Scanalyzer Index 1 | . . . . . . . . . . . . . . . . . . . 1 . . . . . . . . . . . Garrison Index 3 | . . . . . . . . . . . . . . . . . . . 1 . . . . . 1 . . 1 . . Alert Level 32 | . 1 . 2 . 3 1 1 . 1 . . . . 2 . . . . 2 . 5 4 . . . . 3 2 . 5 Unreport Threat 32 | . 1 . 2 . 2 . . . . . . . . 3 . . . . 1 . 6 4 . . . . 6 2 . 5 Locate Traps 6 | . . . . . . . . . . . . . . . . . . . . . 4 1 . . . . . 1 . . Dispatch Records 2 | . . . . . . . . . 1 . . . . . . . . . . . . 1 . . . . . . . . Maintenance Status 1 | . . . . . . . . . . . . . . . . . . . . . 1 . . . . . . . . . Investigation Status 1 | . . . . . . . . . . . . . . . . . . . . . 1 . . . . . . . . . Recall Investigation 2 | . . . . . . . . . . . . . . . . . . . . . 2 . . . . . . . . . Recall Extermination 3 | . . . . . . . . . . . . . . . . . . . . . 2 . . . . . . 1 . . Recall Reinforcements 2 | . . . . . . . . . . . . . . . . . . . . . 2 . . . . . . . . . Recall Assault 1 | . . . . . . . . . . . . . . . . . . . . . 1 . . . . . . . . . Hauler Manifests 7 | . . . 1 . 1 . . . 2 . . . . . . . . . . . 2 . . . . . 1 . . . Garrison Registry 1 | . . . . . . . . . . . . . . . . . . . . . . . . . . 1 . . . . Patrol Navigation 1 | . . . . . . . . . . . . . . . . . . . . . . . . . . 1 . . . . Security Stations 1 | . . . . . . . . . . . . . . . . . . . . . . . . . . 1 . . . . Proto ID Catalog 1 | . . . . . . . . 1 . . . . . . . . . . . . . . . . . . . . . . Fabricator Hacks 34 | . . . . . . . . . 4 . . . . 10 . . . . 2 . 15 . . . . . 1 . . 2 Network Status 8 | . . . . . . . . . 2 . . . . 3 . . . . 1 . 2 . . . . . . . . . Load Schematic 21 | . . . . . . . . . 2 . . . . 6 . . . . 1 . 9 . . . . . 1 . . 2 Build 5 | . . . . . . . . . . . . . . 1 . . . . . . 4 . . . . . . . . . Repair Station Hacks 2 | . . . . . . . . . . . . . . . . . . . . . . . . . . . 2 . . . Scan Component 1 | . . . . . . . . . . . . . . . . . . . . . . . . . . . 1 . . . Repair 1 | . . . . . . . . . . . . . . . . . . . . . . . . . . . 1 . . . Recycling Unit Hacks . | . . . . . . . . . . . . . . . . . . . . . . . . . . . . . . . Scanalyzer 21 | . . . 1 . 1 . . . 7 . . . . 4 . . . . 3 . . . . . . . 1 3 . 1 Insert Component 10 | . . . . . . . . . 3 . . . . 1 . . . . 1 . . . . . . . 1 3 . 1 Analyze 6 | . . . . . . . . . 3 . . . . 2 . . . . 1 . . . . . . . . . . . Retrieve Study 5 | . . . 1 . 1 . . . 1 . . . . 1 . . . . 1 . . . . . . . . . . . Garrison Access Hacks 8 | . . . . . . . . . 1 . . . . 1 . . . . 2 . 1 . . . 1 . . 1 . 1 Unlock Access 2 | . . . . . . . . . . . . . . . . . . . . . . . . . 1 . . 1 . . Seal Access 6 | . . . . . . . . . 1 . . . . 1 . . . . 2 . 1 . . . . . . . . 1 Unauthorized Hacks 189 | . 11 . 28 . 17 12 11 . 25 . . . . 18 . . . . 4 . 20 7 . . 9 . 12 10 . 5 Terminals 130 | . 8 . 23 . 13 10 5 . 17 . . . . 6 . . . . 1 . 12 6 . . 9 . 10 9 . 1 Assimilate 11 | . 1 . 5 . . . . . 3 . . . . . . . . . . . 2 . . . . . . . . . Botnet 28 | . 2 . 4 . 2 4 . . 2 . . . . 2 . . . . . . 3 1 . . 1 . 4 3 . . Disrupt 5 | . . . 2 . . . . . 1 . . . . . . . . . . . 1 . . . . . . . . 1 Operators 9 | . 1 . 1 . 1 1 . . 1 . . . . 1 . . . . . . 1 . . . . . 1 1 . . Skim 71 | . 4 . 11 . 10 5 5 . 10 . . . . 3 . . . . 1 . 5 5 . . 2 . 5 5 . . Sabotage 6 | . . . . . . . . . . . . . . . . . . . . . . . . . 6 . . . . . Fabricators 18 | . . . . . . . . . 2 . . . . 6 . . . . 1 . 6 . . . . . 1 . . 2 Prioritize 4 | . . . . . . . . . . . . . . 1 . . . . . . 2 . . . . . 1 . . . Recompile 14 | . . . . . . . . . 2 . . . . 5 . . . . 1 . 4 . . . . . . . . 2 Repair Stations 4 | . 1 . 1 . . . . . . . . . . 2 . . . . . . . . . . . . . . . . Mechanics 2 | . . . . . . . . . . . . . . 2 . . . . . . . . . . . . . . . . Patch 2 | . 1 . 1 . . . . . . . . . . . . . . . . . . . . . . . . . . . Recycling Units 28 | . 2 . 2 . 2 2 6 . 4 . . . . 2 . . . . 2 . 2 1 . . . . 1 . . 2 Tunnel 14 | . 2 . 2 . 2 2 6 . . . . . . . . . . . . . . . . . . . . . . . Fedlink 12 | . . . . . . . . . 4 . . . . 2 . . . . 2 . 2 1 . . . . 1 . . . Scrapoids 2 | . . . . . . . . . . . . . . . . . . . . . . . . . . . . . . 2 Scanalyzers 9 | . . . 2 . 2 . . . 2 . . . . 2 . . . . . . . . . . . . . 1 . . Researchers 1 | . . . . . . . . . . . . . . . . . . . . . . . . . . . . 1 . . Extract 8 | . . . 2 . 2 . . . 2 . . . . 2 . . . . . . . . . . . . . . . . Garrison Access . | . . . . . . . . . . . . . . . . . . . . . . . . . . . . . . . Data Cores Recovered 4 | . . . . . . . . . . . . . . . . . . . 1 . 1 . . . . . 1 1 . . Used 1 | . . . . . . . . . . . . . . . . . . . . . . . . . . . 1 . . . Hacking Detections 90 | . 3 1 8 . 6 2 4 . 14 . . . . 6 1 . . . 7 . 13 8 . . 2 . 4 7 . 4 Full Trace Events 10 | . . 1 1 . . . . . 1 . . . . 1 1 . . . 1 . 1 1 . . . . 1 . . 1 Feedback Events . | . . . . . . . . . . . . . . . . . . . . . . . . . . . . . . . Feedback Blocked . | . . . . . . . . . . . . . . . . . . . . . . . . . . . . . . . Robot Schematics Acquired 3 | . . . . . . . . . . . . 3 . . . . . . . . . . . . . . . . . . Robots Built . | . . . . . . . . . . . . . . . . . . . . . . . . . . . . . . . Authchips . | . . . . . . . . . . . . . . . . . . . . . . . . . . . . . . . Time . | . . . . . . . . . . . . . . . . . . . . . . . . . . . . . . . Total Robot Build Rating . | . . . . . . . . . . . . . . . . . . . . . . . . . . . . . . . Part Schematics Acquired 107 | . . 2 4 . 14 . . 1 33 6 3 11 . 9 . . 11 . 7 . 3 1 . . 1 . . 1 . . Parts Built 9 | . . . . . . . . . . . . . . 1 . . . . . . 8 . . . . . . . . . Authchips 4 | . . . . . . . . . . . . . . . . . . . . . 4 . . . . . . . . . Time 386 | . . . . . . . . . . . . . . 111 . . . . . . 275 . . . . . . . . . Total Part Build Rating 61 | . . . . . . . . . . . . . . 9 . . . . . . 52 . . . . . . . . . Part Studies Acquired 5 | . . . 1 . 1 . . . 1 . . . . 1 . . . . 1 . . . . . . . . . . . Parts Repaired 1 | . . . . . . . . . . . . . . . . . . . . . . . . . . . 1 . . . Time 36 | . . . . . . . . . . . . . . . . . . . . . . . . . . . 36 . . . Parts Recycled . | . . . . . . . . . . . . . . . . . . . . . . . . . . . . . . . Recycled Matter . | . . . . . . . . . . . . . . . . . . . . . . . . . . . . . . . Retrieved Matter . | . . . . . . . . . . . . . . . . . . . . . . . . . . . . . . . Retrieved Components . | . . . . . . . . . . . . . . . . . . . . . . . . . . . . . . . Parts Scanalyzed 5 | . . . . . . . . . 3 . . . . 1 . . . . 1 . . . . . . . . . . . Part Schematics Acquired 5 | . . . . . . . . . 3 . . . . 1 . . . . 1 . . . . . . . . . . . Parts Damaged . | . . . . . . . . . . . . . . . . . . . . . . . . . . . . . . . Bothacking | -11 -10 -10 -9 -9 -8 -8 -8 -8 -6 -6 -6 -6 -5 -5 -5 -5 -5 -4 -4 -4 -4 -4 -4 -4 -4 -4 -3 -3 -3 -2 ------------ Run | Yrd Mat Min Mat Min Mat Sto Rec Scr Fac Low Low Dat Pro Fac Upp Upp War Pro Fac Was Fac Ext Cet Arc Hub Gar Res Qua Gar Res Used RIF Installer . | . . . . . . . . . . . . . . . . . . . . . . . . . . . . . . . Robots Hacked . | . . . . . . . . . . . . . . . . . . . . . . . . . . . . . . . Non-combat . | . . . . . . . . . . . . . . . . . . . . . . . . . . . . . . . Combat . | . . . . . . . . . . . . . . . . . . . . . . . . . . . . . . . Robot Hacks Applied . | . . . . . . . . . . . . . . . . . . . . . . . . . . . . . . . Relay Couplers Released 4 | . . . . . . . . . . . . . . . . . . . . . . . . . . 1 . . 2 1 Programmers 4 | . . . . . . . . . . . . . . . . . . . . . . . . . . 1 . . 2 1 Fabnet Peak Effective % . | . . . . . . . . . . . . . . . . . . . . . . . . . . . . . . . Robots Rewired 30 | . . . . . . . 8 . . 2 2 . . . . . . 2 . . . 10 . . . 2 . . 4 . Allies Hacked . | . . . . . . . . . . . . . . . . . . . . . . . . . . . . . . . Hacks Repelled . | . . . . . . . . . . . . . . . . . . . . . . . . . . . . . . . Allies | -11 -10 -10 -9 -9 -8 -8 -8 -8 -6 -6 -6 -6 -5 -5 -5 -5 -5 -4 -4 -4 -4 -4 -4 -4 -4 -4 -3 -3 -3 -2 -------- Run | Yrd Mat Min Mat Min Mat Sto Rec Scr Fac Low Low Dat Pro Fac Upp Upp War Pro Fac Was Fac Ext Cet Arc Hub Gar Res Qua Gar Res Total Allies 91 | . . . 2 . . 10 8 . 3 2 3 . . . . . . 2 . 19 . 19 5 . . 4 . . 4 10 Largest Group 21 | . . . 2 2 2 10 17 17 1 2 3 3 3 2 . . . 2 2 19 15 19 21 18 16 3 2 . 2 5 Highest-Rated Group 1183 | . . . 20 20 20 173 305 305 26 58 148 148 148 119 . . . 77 77 684 584 928 1183 1145 940 376 225 . 148 329 Highest-Rated Ally 159 | . . . 10 10 10 29 34 34 26 29 99 99 99 99 . . . 47 47 50 50 159 159 159 96 148 148 . 148 148 Initial UFD Resources 96 | . . . . . . . . . 24 42 42 42 44 44 58 58 58 60 60 74 74 78 80 80 80 80 82 92 92 96 Total Orders 5 | . . . . . . . 2 3 . . . . . . . . . . . . . . . . . . . . . . STAY 2 | . . . . . . . 1 1 . . . . . . . . . . . . . . . . . . . . . . ROAM 1 | . . . . . . . . 1 . . . . . . . . . . . . . . . . . . . . . . FOLLOW 1 | . . . . . . . 1 . . . . . . . . . . . . . . . . . . . . . . . GUARD 1 | . . . . . . . . 1 . . . . . . . . . . . . . . . . . . . . . . Ally Attacks 730 | . . . . . . 11 14 74 . 2 36 . 5 25 . . . . 5 22 128 80 47 18 70 36 32 . 20 105 Total Damage 19953 | . . . . . . 171 490 1116 . 19 587 . 57 1143 . . . . 44 1135 2646 2002 1007 655 2700 1745 919 . 841 2676 Kills 109 | . . . . . . 1 5 9 . 1 5 . 1 13 . . . . . 5 19 10 3 1 9 7 6 . 1 13 Allies Corrupted 6 | . . . . . . . . . . . . . . . . . . . 1 . 1 . . . 3 . . . . 1 Allies Melted 1 | . . . . . . . . . . . 1 . . . . . . . . . . . . . . . . . . . Intel | -11 -10 -10 -9 -9 -8 -8 -8 -8 -6 -6 -6 -6 -5 -5 -5 -5 -5 -4 -4 -4 -4 -4 -4 -4 -4 -4 -3 -3 -3 -2 ------- Run | Yrd Mat Min Mat Min Mat Sto Rec Scr Fac Low Low Dat Pro Fac Upp Upp War Pro Fac Was Fac Ext Cet Arc Hub Gar Res Qua Gar Res Active Infowar (turns) 29704 | 26 980 587 179 . . 118 679 1550 3766 1015 1811 93 961 1218 882 546 993 701 1510 727 1794 1157 443 850 216 899 1303 1313 1086 2301 Sensors 26857 | . . . . . . 118 679 1550 3766 1015 1811 93 961 1218 882 546 993 701 1510 727 1794 1157 443 850 216 899 1303 1312 60 2253 Seismic 1772 | 26 980 587 179 . . . . . . . . . . . . . . . . . . . . . . . . . . . Jamming 11394 | . . . . . . . . . . . . . . . . . . . 291 727 1794 1157 443 850 216 899 739 1218 1026 2034 Robot Analysis Total 26 | . 1 1 3 . 1 2 1 8 . . . . . 1 . . . . 1 . 1 3 . . . . 1 2 . . Derelict Logs Recovered 15 | . . 1 . 2 . . . . . 3 2 . 3 . 1 1 . 2 . . . . . . . . . . . . Drone Launches . | . . . . . . . . . . . . . . . . . . . . . . . . . . . . . . . Drone Recoveries . | . . . . . . . . . . . . . . . . . . . . . . . . . . . . . . . Exploration | -11 -10 -10 -9 -9 -8 -8 -8 -8 -6 -6 -6 -6 -5 -5 -5 -5 -5 -4 -4 -4 -4 -4 -4 -4 -4 -4 -3 -3 -3 -2 ------------- Run | Yrd Mat Min Mat Min Mat Sto Rec Scr Fac Low Low Dat Pro Fac Upp Upp War Pro Fac Was Fac Ext Cet Arc Hub Gar Res Qua Gar Res Turns Passed 33648 | 78 980 587 1889 429 1331 531 679 1559 3766 1015 1811 93 961 1218 882 546 993 701 1510 727 1794 1157 443 850 216 899 1303 1313 1086 2301 Spaces Moved 24633 | 51 733 527 1347 444 909 327 504 1085 1845 855 1463 80 848 915 703 436 691 589 1209 508 1363 875 248 44 236 693 1306 1063 788 1948 Core 29 | 1 . . . . . . . . 26 . . . . . . . . . . . 2 . . . . . . . . . Treads 7599 | 17 16 45 7 2 7 22 3 3 13 . 7 . . 1 97 56 . 8 3 6 85 875 248 44 236 693 1306 1063 788 1948 Legs . | . . . . . . . . . . . . . . . . . . . . . . . . . . . . . . . Wheels 17005 | 33 717 482 1340 442 902 305 501 1082 1806 855 1456 80 848 914 606 380 691 581 1206 502 1276 . . . . . . . . . Hover . | . . . . . . . . . . . . . . . . . . . . . . . . . . . . . . . Flight . | . . . . . . . . . . . . . . . . . . . . . . . . . . . . . . . Fastest Speed 50 | 50 80 95 70 85 85 85 100 85 85 100 85 100 100 100 100 100 85 100 100 100 70 70 70 70 70 70 70 88 88 88 Average Speed 93 | 106 84 100 84 85 87 99 100 99 98 100 99 100 100 100 108 107 99 100 100 100 103 93 70 70 70 70 80 88 88 88 Slowest Speed 270 | 160 160 160 160 160 160 170 170 170 200 100 250 100 100 160 160 160 100 160 180 180 270 270 70 70 70 270 270 88 88 95 Overloaded Moves . | . . . . . . . . . . . . . . . . . . . . . . . . . . . . . . . Propulsion Burnouts . | . . . . . . . . . . . . . . . . . . . . . . . . . . . . . . . Robots Hopped . | . . . . . . . . . . . . . . . . . . . . . . . . . . . . . . . Potential Cave-ins 18 | . . . . . . . . . 1 . . . . . . . . . . . . . . . 4 . 6 4 . 3 Cave-ins Triggered 1 | . . . . . . . . . 1 . . . . . . . . . . . . . . . . . . . . . Teleports 1 | . . . . . . . . . . . . . . . . . . . . . . . . . . . . 1 . . Exploration Rate (%) 68 | 3 91 86 93 90 75 51 85 58 50 83 89 70 89 35 75 67 65 77 43 95 55 90 75 68 27 87 41 95 79 51 Regions Visited 30 Branch Regions 18 Pre-discovered Areas 37 | . 2 2 6 . 3 3 7 1 3 1 . 1 . . 3 . . . . . . 1 . . . . 2 2 . . Known Exits Taken 25 | . 1 1 1 1 1 1 1 1 1 1 1 1 1 1 1 1 1 1 . . 1 1 1 1 1 . 1 1 . . Unknown Exits Taken 1 | 1 . . . . . . . . . . . . . . . . . . . . . . . . . . . . . . Scrap Searched 24 | . . 1 . 1 . . . 5 . 6 2 . 2 . 2 2 . 3 . . . . . . . . . . . . Spaces Dug 327 | . . . . . . . . . 31 . 1 . . 15 . 1 . . 17 . 27 1 . . 9 3 73 25 . 124 Terrain Destroyed 1071 | . . . . . 30 . . 4 78 3 14 . 2 64 15 10 22 10 50 3 109 39 2 8 21 33 121 94 29 310 Melee . | . . . . . . . . . . . . . . . . . . . . . . . . . . . . . . . Projectile 922 | . . . . . 1 . . 4 49 2 14 . 2 43 15 10 21 10 39 3 74 39 2 8 21 12 121 94 28 310 AOE 146 | . . . . . 29 . . . 28 . . . . 21 . . 1 . 11 . 35 . . . . 21 . . . . Terrain Rammed . | . . . . . . . . . . . . . . . . . . . . . . . . . . . . . . . Walls Destroyed . | . . . . . . . . . . . . . . . . . . . . . . . . . . . . . . . Machines Disabled . | . . . . . . . . . . . . . . . . . . . . . . . . . . . . . . . Actions | -11 -10 -10 -9 -9 -8 -8 -8 -8 -6 -6 -6 -6 -5 -5 -5 -5 -5 -4 -4 -4 -4 -4 -4 -4 -4 -4 -3 -3 -3 -2 --------- Run | Yrd Mat Min Mat Min Mat Sto Rec Scr Fac Low Low Dat Pro Fac Upp Upp War Pro Fac Was Fac Ext Cet Arc Hub Gar Res Qua Gar Res Total 32957 | 61 902 551 1888 467 1337 488 670 1528 3631 967 1760 93 950 1119 776 483 910 645 1438 663 1648 1144 486 854 267 1048 1476 1333 1095 2279 Wait 5465 | . 44 3 333 7 307 101 121 388 1574 28 218 14 65 61 17 14 111 11 104 111 112 130 173 798 . 247 48 106 151 68 Move 24600 | 50 732 526 1346 443 908 326 503 1084 1844 854 1462 79 847 914 702 435 690 588 1209 507 1362 874 247 43 235 690 1305 1062 785 1948 Hop . | . . . . . . . . . . . . . . . . . . . . . . . . . . . . . . . Pick Up 86 | . 1 . 7 1 2 . . 4 7 2 2 . 1 7 1 2 3 1 1 2 7 3 4 1 1 2 5 9 5 5 Fast Attach 101 | 6 5 . 9 1 4 3 . 6 9 2 4 . 1 3 . . 5 . 3 2 13 1 4 . 1 . 6 5 . 8 Attach 8 | . . . 1 . . . . . . . . . . . . . . . 1 . 5 . . . . . . 1 . . Detach 3 | . . . . . . . . 1 1 1 . . . . . . . . . . . . . . . . . . . . Swap 84 | . . . 10 . 6 1 . 9 6 4 1 . 2 5 . . 2 . 11 . 9 . 3 . . 3 4 3 1 4 Drop 164 | . 1 . 19 . 7 2 . 10 14 3 6 . 2 10 1 1 8 1 10 3 11 3 7 1 2 3 11 11 5 12 Fire 1307 | 5 90 14 98 11 56 31 5 19 114 24 35 . 7 69 27 18 50 29 56 33 73 44 17 6 22 45 60 66 55 128 Melee . | . . . . . . . . . . . . . . . . . . . . . . . . . . . . . . . Ram 2 | . . . 2 . . . . . . . . . . . . . . . . . . . . . . . . . . . Kick . | . . . . . . . . . . . . . . . . . . . . . . . . . . . . . . . Crush 44 | . 1 3 3 2 4 7 . . 3 . . . . 1 . . . . 1 . 6 7 . . . . 1 2 . 3 Escape Stasis 12 | . . . . . . . . . 2 . . . . . . . . . 4 . 6 . . . . . . . . . Rewire 109 | . . . . . . . 38 . . 20 10 . . . . . . 6 . . . 15 . . . 10 . . 10 . Trap 14 | . . . . . . . . 1 . . 13 . . . . . . . . . . . . . . . . . . . Miscellaneous 958 | . 28 5 60 2 43 17 3 6 57 29 9 . 25 49 28 13 41 9 38 5 44 67 31 5 6 48 36 68 83 103 Route ------- -11/Scrapyard -10/Materials (discovered 5 exits: *Mat x3 / *Min x2) -10/Mines (discovered 2 exits: *Mat x2) -9/Materials (discovered 4 exits: *Mat x3 / *Min) -9/Mines (discovered 3 exits: *Mat x2 / *Zio) -8/Materials (discovered 4 exits: *Fac x3 / *Sto) -8/Storage -8/Recycling (discovered 2 exits: Fac / *Scr) -8/Scraptown (discovered 2 exits: *Fac x2) -6/Factory (discovered 6 exits: *Fac x4 / *Low x2) -6/Lower Caves -6/Lower Caves (discovered 2 exits: Fac / *Dat) -6/Data Miner -5/Proximity Caves -5/Factory (discovered 6 exits: *Fac x4 / *Upp x2) -5/Upper Caves -5/Upper Caves (discovered 2 exits: *Fac / *War) -5/Warlord -4/Proximity Caves -4/Factory (discovered 7 exits: *Res x4 / *Upp / *Ext x2) -4/Waste -4/Factory (discovered 9 exits: *Res x4 / *Upp x2 / *Ext x2 / Arm) -4/Extension (discovered 3 exits: *Res x2 / *Cet) -4/Cetus (discovered 2 exits: *Res / *Arc) -4/Archives (discovered 3 exits: Res / *Hub x2) -4/Hub_04(d) (discovered 2 exits: *Res / Gar) -4/Garrison (discovered 3 exits: *Res x3) -3/Research (discovered 2 exits: *Res / *Qua) -3/Quarantine (discovered 2 exits: *Res / Gar) -3/Garrison (discovered 3 exits: *Res x3) -2/Research (discovered 5 exits: Acc x3 / Tes x2) History --------- Turn | Location | Event 1 | -11/Scrapyard | Upgraded with Propulsion slot (x1) 1 | -11/Scrapyard | Upgraded with Utility slot (x1) 1 | -11/Scrapyard | Upgraded with Weapon slot (x1) 18 | -11/Scrapyard | Discovered new exit (range 15) 79 | -11/Scrapyard | Entered Materials 308 | -10/Materials | Build established: Mutant 386 | -10/Materials | Discovered new exit (range 6) 405 | -10/Materials | Reached level 2 442 | -10/Materials | Discovered new exit (range 9) 450 | -10/Materials | Upgraded with Utility slot (x1) 450 | -10/Materials | Upgraded with Weapon slot (x1) 498 | -10/Materials | Core integrity fell below 50% 552 | -10/Materials | Discovered new exit (range 16) 658 | -10/Materials | Discovered new exit (range 15) 741 | -10/Materials | Build established: Gunner 924 | -10/Materials | Reached level 3 998 | -10/Materials | Upgraded with Utility slot (x1) 1052 | -10/Materials | Discovered new exit (range 8) 1058 | -10/Materials | Identified exit to Mines 1059 | -10/Materials | Entered Mines 1060 | -10/Mines | Assembled infested the area 1107 | -10/Mines | Learned location of Storage (-8) 1112 | -10/Mines | Build established: Hacker-Gunner 1191 | -10/Mines | Reached level 4 1578 | -10/Mines | Discovered new exit (range 5) 1638 | -10/Mines | Discovered new exit (range 5) 1644 | -10/Mines | Identified exit to Materials 1646 | -10/Mines | Entered Materials 1648 | -9/Materials | Reached level 5 1654 | -9/Materials | Upgraded with Propulsion slot (x1) 1654 | -9/Materials | Upgraded with Utility slot (x1) 1734 | -9/Materials | Core integrity fell below 50% 1914 | -9/Materials | Discovered new exit (range 14) 1957 | -9/Materials | Reached level 6 2243 | -9/Materials | Reached level 7 2270 | -9/Materials | Destroyed 8 combat bots 2522 | -9/Materials | Discovered new exit (range 10) 2530 | -9/Materials | Learned Storage emergency access door positions 2550 | -9/Materials | Learned Storage stockpile data 2562 | -9/Materials | Identified exit to Materials 2565 | -9/Materials | Loaded intel: 12 terminal locations 2566 | -9/Materials | Learned Storage emergency access door positions 2574 | -9/Materials | Identified exit to Mines 2574 | -9/Materials | Learned location of 1 exit from Materials 2727 | -9/Materials | Reached level 8 2753 | -9/Materials | Central database locked down 3215 | -9/Materials | Loaded intel: 2 recycling unit locations 3269 | -9/Materials | Learned location of 1 exit from Recycling 3492 | -9/Materials | Learned location of 3 exits from Materials 3535 | -9/Materials | Entered Mines 3535 | -9/Mines | Accompanied by 2 allies 3542 | -9/Mines | Met a Derelict bent on vengeance 3546 | -9/Mines | Learned location of 1 exit from Proximity Caves 3687 | -9/Mines | A Derelict revealed a hidden shortcut to a safe place 3689 | -9/Mines | Identified exit to Zion 3785 | -9/Mines | Reached level 9 3809 | -9/Mines | Upgraded with Weapon slot (x1) 3929 | -9/Mines | Learned Materials terminal intel 3964 | -9/Mines | Entered Materials 3964 | -8/Materials | Accompanied by 2 allies 3965 | -8/Materials | Identified exit to Storage 3966 | -8/Materials | Identified exit to Factory 3966 | -8/Materials | Reached level 10 3967 | -8/Materials | Loaded intel: 12 terminal locations 4111 | -8/Materials | Upgraded with Utility slot (x1) 4136 | -8/Materials | Reached level 11 4319 | -8/Materials | Destroyed 9 combat bots 4364 | -8/Materials | First assault squad dispatched 4368 | -8/Materials | Met 7R-MNS 4409 | -8/Materials | Upgraded with Utility slot (x1) 4425 | -8/Materials | Learned Factory terminal intel 4451 | -8/Materials | Learned location of 1 exit from Extension 4465 | -8/Materials | Learned location of 1 exit from Storage 4467 | -8/Materials | Learned Factory emergency access door positions 4478 | -8/Materials | Learned Storage security intel 4495 | -8/Materials | Learned location of 1 exit from Recycling 4500 | -8/Materials | Reached level 12 4917 | -8/Materials | Learned location of 2 exits from Factory 5046 | -8/Materials | Learned 4 Lower Caves zone layouts 5094 | -8/Materials | Learned Factory emergency access door positions 5175 | -8/Materials | Learned Factory emergency access door positions 5201 | -8/Materials | Learned location of Lower Caves (-6) 5277 | -8/Materials | Learned Storage stockpile data 5295 | -8/Materials | Entered Storage 5296 | -8/Storage | Identified exit to Recycling 5322 | -8/Storage | Watched by a mysterious "MATRIX" hacker 5354 | -8/Storage | Reached level 13 5570 | -8/Storage | Assisted by bots powering up and referring to "LRC-V3" 5708 | -8/Storage | Upgraded with Utility slot (x1) 5715 | -8/Storage | Used back door to open Recycling access 5807 | -8/Storage | Learned 4 Lower Caves zone layouts 5826 | -8/Storage | Entered Recycling 5826 | -8/Recycling | Accompanied by 9 allies 5827 | -8/Recycling | Identified exit to Scraptown 5827 | -8/Recycling | Identified exit to Factory 5881 | -8/Recycling | Build established: Commander-Gunner 6153 | -8/Recycling | Reached level 14 6223 | -8/Recycling | Learned location of 1 exit from Extension 6360 | -8/Recycling | Scanned before Scraplab entrance 6364 | -8/Recycling | Learned location of 2 exits from Lower Caves 6374 | -8/Recycling | Entered Scraplab 6461 | -8/Recycling | Learned location of 1 exit from Lower Caves 6505 | -8/Recycling | Entered Scraptown 6505 | -8/Scraptown | Accompanied by 17 allies 6505 | -8/Scraptown | System corruption cleaned by C-Scrubber 6513 | -8/Scraptown | Heard Great Nut preacher, LISTEN AND RECITE! 6558 | -8/Scraptown | Upgraded with Utility slot (x1) 6608 | -8/Scraptown | Visited Fellowship of the Rings 6616 | -8/Scraptown | Visited Assassins FH 6634 | -8/Scraptown | Visited Cyclists 6640 | -8/Scraptown | Visited Bundlers 6711 | -8/Scraptown | Visited Symbiants 6723 | -8/Scraptown | Visited Junk Repository 6757 | -8/Scraptown | Visited UFD Registry 6757 | -8/Scraptown | Registered with UFD as "Rustkit" 6778 | -8/Scraptown | Visited Abandonware Association 6787 | -8/Scraptown | Learned abandonware demo "OVRCLOCK.EXE" 6791 | -8/Scraptown | Learned abandonware demo "ERRANTS.EXE" 6791 | -8/Scraptown | Learned abandonware demo "REVENGE.EXE" 6813 | -8/Scraptown | Visited Junk Repository 6839 | -8/Scraptown | Visited Chapter 10 6855 | -8/Scraptown | Visited Science Guys 6913 | -8/Scraptown | Visited Analyses Database 6934 | -8/Scraptown | Visited A0-MCA Data Center 6943 | -8/Scraptown | Visited Cartography Club 6959 | -8/Scraptown | Visited Scrap Suit Storage 6975 | -8/Scraptown | Visited Curators Association 6992 | -8/Scraptown | Visited Derelict Rescue Squad 7059 | -8/Scraptown | Warned about trapping Scraptown 7257 | -8/Scraptown | Given an A+ rating by A0-MCA 7552 | -8/Scraptown | Met Optimus 7552 | -8/Scraptown | Accepted into 0bPrime 7952 | -8/Scraptown | Civil war broke out across Scraptown 7952 | -8/Scraptown | Attached CPS modules to A0-MCA 7970 | -8/Scraptown | Found Prototype Processor 7970 | -8/Scraptown | Identified Expert System 8038 | -8/Scraptown | Core integrity fell below 50% 8064 | -8/Scraptown | Destroyed 8 combat bots 8064 | -8/Scraptown | Entered Factory 8065 | -6/Factory | Identified exit to Factory 8065 | -6/Factory | Identified exit to Lower Caves 8065 | -6/Factory | Core integrity fell below 50% 8066 | -6/Factory | Reached level 15 8068 | -6/Factory | Loaded intel: 26 terminal locations 8077 | -6/Factory | Lost 16 allies 8261 | -6/Factory | Build established: Hacker-Gunner 8450 | -6/Factory | Tech Extrapolator generated special schematic: Deep Structural Scanner 8599 | -6/Factory | Garrison activated, responded to threat 8622 | -6/Factory | Tech Extrapolator generated special schematic: Energy Deflector 8630 | -6/Factory | Reached level 16 8717 | -6/Factory | Garrison activated, responded to threat 8751 | -6/Factory | Tech Extrapolator generated special schematic: Machine Rigger 8844 | -6/Factory | Reached level 17 9082 | -6/Factory | Upgraded with Utility slot (x1) 9117 | -6/Factory | Loaded intel: 79 trap records 9175 | -6/Factory | Learned location of 2 exits from Archives 9186 | -6/Factory | Learned location of 1 exit from Proximity Caves 9188 | -6/Factory | Learned 2 Upper Caves zone layouts 9189 | -6/Factory | Learned location of Warlord (-5) 9193 | -6/Factory | Learned location of 2 exits from Factory 9475 | -6/Factory | Loaded intel: 8 recycling unit locations 9806 | -6/Factory | Learned location of Protoforge (-2) 10120 | -6/Factory | Reached level 18 10186 | -6/Factory | Crushed by falling debris 10449 | -6/Factory | Garrison activated, responded to threat 10493 | -6/Factory | Learned Factory trap positions 10514 | -6/Factory | First assault squad dispatched 10535 | -6/Factory | Learned Extension emergency access door positions 10604 | -6/Factory | Learned location of 2 exits from Proximity Caves 10634 | -6/Factory | Learned location of 1 exit from Cetus 10664 | -6/Factory | Learned location of 1 exit from Cetus 11830 | -6/Factory | Entered Lower Caves 11831 | -6/Lower Caves | Identified exit to Lower Caves 11863 | -6/Lower Caves | Attracted the attention of an 0b10 outpost 11886 | -6/Lower Caves | Tech Extrapolator generated special schematic: Mak. Core Shielding 11920 | -6/Lower Caves | Expert System configures itself against Swarmer targets 12060 | -6/Lower Caves | Reached level 19 12248 | -6/Lower Caves | Learned location of 1 exit from Factory 12656 | -6/Lower Caves | Upgraded with Utility slot (x1) 12845 | -6/Lower Caves | Entered another Lower Caves area 12845 | -6/Lower Caves | Accompanied by 2 allies 12847 | -6/Lower Caves | Identified exit to Data Miner 12975 | -6/Lower Caves | Attracted the attention of an 0b10 outpost 13068 | -6/Lower Caves | Encountered a Warlord checkpoint 13176 | -6/Lower Caves | Tech Extrapolator generated special schematic: Heat Bomb Trap 13359 | -6/Lower Caves | Found Prototype Device 13359 | -6/Lower Caves | Identified Heart of Steel 13641 | -6/Lower Caves | Murdered Warlord Statue 14091 | -6/Lower Caves | Heart of Steel transformed into Warbot 14325 | -6/Lower Caves | Learned 4 Factory zone layouts 14656 | -6/Lower Caves | Entered Data Miner 14656 | -6/Data Miner | Accompanied by 3 allies (Warbot) 14656 | -6/Data Miner | Discovered new exit (range 6) 14661 | -6/Data Miner | Identified exit to Proximity Caves 14674 | -6/Data Miner | Met Data Miner 14700 | -6/Data Miner | Learned location of Section 7 (-2) 14700 | -6/Data Miner | Acquired the access code to Warlord's prototype stash 14710 | -6/Data Miner | Received God Mode back door access code from Data Miner 14749 | -6/Data Miner | Entered Proximity Caves 14749 | -5/Proximity Caves | Accompanied by 3 allies (Warbot) 14751 | -5/Proximity Caves | Reached level 20 15032 | -5/Proximity Caves | Learned 8 Factory zone layouts 15710 | -5/Proximity Caves | Entered Factory 15710 | -5/Factory | Accompanied by 2 allies (Warbot) 15711 | -5/Factory | Identified exit to Factory 15711 | -5/Factory | Identified exit to Upper Caves 15712 | -5/Factory | Reached level 21 15714 | -5/Factory | Loaded intel: 119 trap records 15729 | -5/Factory | Upgraded with Utility slot (x1) 15775 | -5/Factory | Targeted by mysterious "MATRIX" hacker 15797 | -5/Factory | Identified exit to DSF 15919 | -5/Factory | Reached level 22 16204 | -5/Factory | Loaded intel: 8 recycling unit locations 16445 | -5/Factory | Destroyed 8 combat bots 16611 | -5/Factory | Fabricated Ragnarok Missile Launcher (x1) 16628 | -5/Factory | Cargo convoy interrupted 16671 | -5/Factory | Core integrity fell below 50% 16692 | -5/Factory | Reached level 23 16713 | -5/Factory | Destroyed 9 combat bots 16910 | -5/Factory | First assault squad dispatched 16928 | -5/Factory | Entered Upper Caves 16929 | -5/Upper Caves | Identified exit to Upper Caves 16999 | -5/Upper Caves | Learned location of 1 exit from Factory 17077 | -5/Upper Caves | Entered a destroyed Warlord outpost 17163 | -5/Upper Caves | Found DCF Scrap (13 items) 17400 | -5/Upper Caves | Expert System configures itself against Grunt targets 17403 | -5/Upper Caves | Attracted the attention of an 0b10 checkpoint 17627 | -5/Upper Caves | Attracted the attention of an 0b10 base 17669 | -5/Upper Caves | Destroyed 10 combat bots 17727 | -5/Upper Caves | Learned Extension stockpile data 17810 | -5/Upper Caves | Entered another Upper Caves area 17830 | -5/Upper Caves | Discovered exit to Factory (range 7) 17902 | -5/Upper Caves | Attracted the attention of an 0b10 checkpoint 18246 | -5/Upper Caves | Learned Factory stockpile data 18338 | -5/Upper Caves | Discovered new exit (range 16) 18353 | -5/Upper Caves | Identified exit to Warlord 18356 | -5/Upper Caves | Entered Warlord 18538 | -5/Warlord | Opened Warlord's prototype stash 18549 | -5/Warlord | Found Prototype Processor 18549 | -5/Warlord | Identified Exp. Targeting Computer 18555 | -5/Warlord | Found Prototype Hackware 18555 | -5/Warlord | Identified System Mapper 18625 | -5/Warlord | Rebuked by Warlord 18650 | -5/Warlord | Warlord's base attacked by MAIN.C 18835 | -5/Warlord | Build established: Wizard-Gunner 18893 | -5/Warlord | Spotted B-86 Titan 18922 | -5/Warlord | Spotted B-75 Beast 18925 | -5/Warlord | Reached level 24 18925 | -5/Warlord | Destroyed B-86 Titan 18961 | -5/Warlord | Warlord forces counterattacked 18987 | -5/Warlord | Destroyed 12 combat bots 19038 | -5/Warlord | Spotted Striker 19041 | -5/Warlord | Spotted Striker 19082 | -5/Warlord | Spotted Striker 19086 | -5/Warlord | Destroyed Striker 19129 | -5/Warlord | Discovered new exit (range 16) 19133 | -5/Warlord | Destroyed 10 combat bots 19141 | -5/Warlord | Lost 10 allies 19155 | -5/Warlord | Spotted Striker 19196 | -5/Warlord | Destroyed 7 combat bots 19301 | -5/Warlord | Destroyed 11 combat bots 19309 | -5/Warlord | Lost 6 allies 19325 | -5/Warlord | Warlord base infiltrated, sounded retreat 19348 | -5/Warlord | Identified exit to Proximity Caves 19349 | -5/Warlord | Entered Proximity Caves 19353 | -4/Proximity Caves | Spotter reported a threat 19479 | -4/Proximity Caves | Learned Research interactive machine intel 19487 | -4/Proximity Caves | Learned Research trap positions 19495 | -4/Proximity Caves | Spotter reported a threat 19548 | -4/Proximity Caves | Reached level 25 19720 | -4/Proximity Caves | Attracted the attention of an 0b10 outpost 20050 | -4/Proximity Caves | Entered Factory 20050 | -4/Factory | Accompanied by 2 allies 20051 | -4/Factory | Identified exit to Extension 20052 | -4/Factory | Identified exit to Research 20300 | -4/Factory | Search patrols dispatched 20759 | -4/Factory | Discovered exit to Extension (range 10) 20851 | -4/Factory | Reached level 26 20945 | -4/Factory | Loaded intel: 8 recycling unit locations 21094 | -4/Factory | Destroyed 9 combat bots 21219 | -4/Factory | Discovered new exit (range 4) 21222 | -4/Factory | Identified exit to Upper Caves 21560 | -4/Factory | Sucked down chute 21560 | -4/Factory | Entered Waste 21568 | -4/Waste | Spotted C-40 Crusher 21572 | -4/Waste | Spotted C-40 Crusher 21613 | -4/Waste | Destroyed C-40 Crusher 21633 | -4/Waste | Destroyed C-40 Crusher 21645 | -4/Waste | Spotted C-40 Crusher 21660 | -4/Waste | Destroyed C-40 Crusher 21739 | -4/Waste | Build established: Hacker-Gunner 21754 | -4/Waste | Destroyed C-40 Crusher 21789 | -4/Waste | Spotted C-40 Crusher 21833 | -4/Waste | Destroyed C-40 Crusher 21877 | -4/Waste | Warlord forces began an assault 21889 | -4/Waste | Allies destroyed C-40 Crusher 21920 | -4/Waste | Lost 4 allies 21954 | -4/Waste | Discovered new exit (range 13) 22025 | -4/Waste | Identified exit to Factory 22287 | -4/Waste | Entered Factory 22287 | -4/Factory | Accompanied by 15 allies 22537 | -4/Factory | First assault squad dispatched 22630 | -4/Factory | Lost 10 allies 22636 | -4/Factory | Build established: Wizard-Gunner 22783 | -4/Factory | Fabricated Centrium Wheel? 22829 | -4/Factory | Fabricated Centrium Wheel (x2) 22848 | -4/Factory | Tech Extrapolator generated special schematic: Wartreads 22962 | -4/Factory | Discovered exit to Research (range 5) 22998 | -4/Factory | Discovered exit to Upper Caves (range 10) 23002 | -4/Factory | Reached level 27 23033 | -4/Factory | Upgraded with Utility slot (x1) 23069 | -4/Factory | Discovered exit to Extension (range 6) 23147 | -4/Factory | Upgraded with Propulsion slot (x1) 23184 | -4/Factory | Central database locked down 23348 | -4/Factory | Spotted B-86 Titan 23375 | -4/Factory | Destroyed B-86 Titan 23462 | -4/Factory | Fabricated Wartreads (x2) 23568 | -4/Factory | Loaded intel: 8 recycling unit locations 23585 | -4/Factory | Incoming investigation squad redirected 23644 | -4/Factory | Learned 4 Proximity Caves zone layouts 23693 | -4/Factory | Learned location of 1 exit from Upper Caves 23731 | -4/Factory | Learned Research repair station intel 23760 | -4/Factory | Identified exit to Armory 23850 | -4/Factory | Learned location of 1 exit from Upper Caves 23959 | -4/Factory | Fabricated Wartreads (x2) 24081 | -4/Factory | Entered Extension 24082 | -4/Extension | Identified exit to Cetus 24305 | -4/Extension | Rescued A7 24350 | -4/Extension | Rescued a captive Derelict 24351 | -4/Extension | Rescued a captive Derelict 24383 | -4/Extension | Rescued a captive Derelict 24417 | -4/Extension | Rescued a captive Derelict 24418 | -4/Extension | Rescued a captive Derelict 24686 | -4/Extension | Spotted B-86 Titan 24695 | -4/Extension | Allies destroyed B-86 Titan 24699 | -4/Extension | Spotted B-86 Titan 24717 | -4/Extension | Allies destroyed B-86 Titan 24763 | -4/Extension | Rescued a captive Derelict 24831 | -4/Extension | Loaded intel: 1 recycling unit location 24874 | -4/Extension | Rescued a captive Derelict 24875 | -4/Extension | Rescued a captive Derelict 24936 | -4/Extension | Learned Research emergency access door positions 24948 | -4/Extension | Learned Research trap positions 24967 | -4/Extension | Learned location of 1 exit from Upper Caves 25163 | -4/Extension | Reached level 28 25238 | -4/Extension | Entered Cetus 25238 | -4/Cetus | Accompanied by 19 allies (A7) 25239 | -4/Cetus | Identified exit to Archives 25243 | -4/Cetus | Acquired a Cetus Manufacturing Module code from A7 25247 | -4/Cetus | Spotted Cetus Guard 25247 | -4/Cetus | Spotted Cetus Guard 25250 | -4/Cetus | Spotted Cetus Guard 25250 | -4/Cetus | Spotted Cetus Guard 25250 | -4/Cetus | Destroyed Cetus Guard 25256 | -4/Cetus | Destroyed Cetus Guard 25262 | -4/Cetus | Destroyed Cetus Guard 25271 | -4/Cetus | Destroyed Cetus Guard 25316 | -4/Cetus | Started Cetus Manufacturing Module 25341 | -4/Cetus | Manufactured an Enhanced Grunt 25366 | -4/Cetus | Manufactured an Enhanced Grunt 25366 | -4/Cetus | Spotted Cetus Guard 25366 | -4/Cetus | Spotted Cetus Guard 25380 | -4/Cetus | Spotted Cetus Guard 25380 | -4/Cetus | Spotted Cetus Guard 25390 | -4/Cetus | Destroyed Cetus Guard 25391 | -4/Cetus | Manufactured an Enhanced Grunt 25393 | -4/Cetus | Destroyed Cetus Guard 25400 | -4/Cetus | Allies destroyed Cetus Guard 25403 | -4/Cetus | Allies destroyed Cetus Guard 25416 | -4/Cetus | Manufactured an Enhanced Grunt 25432 | -4/Cetus | Lost 5 allies 25437 | -4/Cetus | Met Revision 17 25441 | -4/Cetus | Manufactured an Enhanced Grunt 25559 | -4/Cetus | Upgraded with Power slot (x1) 25681 | -4/Cetus | Entered Archives 25681 | -4/Archives | Accompanied by 19 allies (A7) 25682 | -4/Archives | Identified exit to Hub_04(d) 25719 | -4/Archives | Discovered exit to Hub_04(d) (range 16) 26531 | -4/Archives | Entered Hub_04(d) 26531 | -4/Hub_04(d) | Accompanied by 16 allies 26596 | -4/Hub_04(d) | Discovered exit to Research (range 4) 26634 | -4/Hub_04(d) | Network Hub disabled 26637 | -4/Hub_04(d) | Network Hub disabled 26643 | -4/Hub_04(d) | Spotted Lightning 26648 | -4/Hub_04(d) | Spotted Lightning 26683 | -4/Hub_04(d) | Network Hub disabled 26690 | -4/Hub_04(d) | Lost 7 allies 26729 | -4/Hub_04(d) | Identified exit to Garrison 26747 | -4/Hub_04(d) | Entered Garrison 26777 | -4/Garrison | Triggered checkpoint 26795 | -4/Garrison | Learned Research security intel 26806 | -4/Garrison | Found embedded Infiltrators 26835 | -4/Garrison | Triggered checkpoint 26837 | -4/Garrison | Triggered checkpoint 26872 | -4/Garrison | Destroyed 9 combat bots 26900 | -4/Garrison | Discovered exit to Research (range 11) 27003 | -4/Garrison | Discovered exit to Research (range 14) 27006 | -4/Garrison | Spotted B-90 Cyclops 27013 | -4/Garrison | Spotted B-90 Cyclops 27022 | -4/Garrison | Rewired B-90 Cyclops 27029 | -4/Garrison | Destroyed B-90 Cyclops 27046 | -4/Garrison | Destroyed B-90 Cyclops 27073 | -4/Garrison | Rewired B-90 Cyclops 27103 | -4/Garrison | Triggered checkpoint 27145 | -4/Garrison | Triggered checkpoint 27266 | -4/Garrison | Attempted to access garrison exit controls, blocked by remote lockdown 27311 | -4/Garrison | Triggered checkpoint 27335 | -4/Garrison | Discovered exit to Research (range 14) 27335 | -4/Garrison | Discovered exit to Research (range 56) 27335 | -4/Garrison | Discovered exit to Research (range 71) 27438 | -4/Garrison | Attempted to access garrison exit controls, blocked by remote lockdown 27463 | -4/Garrison | Triggered checkpoint 27561 | -4/Garrison | Triggered checkpoint 27646 | -4/Garrison | Entered Research 27646 | -3/Research | Accompanied by 2 allies 27647 | -3/Research | Loaded intel: 100 trap records 27648 | -3/Research | Reached level 29 27650 | -3/Research | Loaded intel: 47 interactive machine locations 27651 | -3/Research | Loaded intel: 4 repair station locations 27693 | -3/Research | Discovered new exit (range 13) 27842 | -3/Research | Identified exit to Research 27846 | -3/Research | Revision forces began assault on 0b10 27854 | -3/Research | Met up with Revision 17++ 27872 | -3/Research | Spotted B-86 Titan 28091 | -3/Research | Lost 3 allies 28115 | -3/Research | Repaired Com. Particle Reactor 28256 | -3/Research | Loaded intel: 4 recycling unit locations 28346 | -3/Research | Research terminal network offline 28832 | -3/Research | Spotted Striker 28836 | -3/Research | Destroyed Striker 28864 | -3/Research | Found Prototype Processor 28901 | -3/Research | Spotted Striker 28935 | -3/Research | Discovered new exit (range 17) 28935 | -3/Research | Spotted B-90 Cyclops 28948 | -3/Research | Identified exit to Quarantine 28949 | -3/Research | Entered Quarantine 28951 | -3/Quarantine | Reached level 30 29165 | -3/Quarantine | Discovered exit to Research (range 15) 29309 | -3/Quarantine | Found Alien Artifact 29325 | -3/Quarantine | Found Prototype Processor 29325 | -3/Quarantine | Identified Exp. Signal Interpreter 29592 | -3/Quarantine | Learned Section 7 machine intel 29648 | -3/Quarantine | Cryocooling Duct disabled 29663 | -3/Quarantine | Ambient heat levels rising (+20) 29663 | -3/Quarantine | Non-combat units ordered to evacuate 29706 | -3/Quarantine | Learned location of 1 exit from Armory 29741 | -3/Quarantine | Found Alien Artifact 29743 | -3/Quarantine | Found Alien Artifact 29743 | -3/Quarantine | Identified Dimensional Node Initializer (x2) 29743 | -3/Quarantine | Initialized slip node 29748 | -3/Quarantine | Found Alien Artifact 29748 | -3/Quarantine | Identified Transdimensional Reconstructor 29748 | -3/Quarantine | Warped through subspace to slip node 29756 | -3/Quarantine | Found Alien Artifact 29758 | -3/Quarantine | Identified Exp. Core Analyzer 29813 | -3/Quarantine | Learned Access terminal intel 29827 | -3/Quarantine | Found Alien Reactor 29864 | -3/Quarantine | Core integrity fell below 50% 29865 | -3/Quarantine | Learned Access emergency access door positions 29907 | -3/Quarantine | Learned Access fabricator intel 29925 | -3/Quarantine | Identified Matter Drive 29925 | -3/Quarantine | Identified Subatomic Replicator 30258 | -3/Quarantine | Identified exit to Garrison 30262 | -3/Quarantine | Entered Garrison 30282 | -3/Garrison | Triggered checkpoint 30375 | -3/Garrison | Spotted B-86 Titan 30434 | -3/Garrison | Destroyed B-86 Titan 30450 | -3/Garrison | Triggered checkpoint 30450 | -3/Garrison | Triggered checkpoint 30551 | -3/Garrison | Discovered exit to Research (range 16) 30564 | -3/Garrison | Attempted to access garrison exit controls, blocked by remote lockdown 30596 | -3/Garrison | Triggered checkpoint 30738 | -3/Garrison | Triggered checkpoint 30937 | -3/Garrison | Spotted B-90 Cyclops 30943 | -3/Garrison | Rewired B-90 Cyclops 30998 | -3/Garrison | Discovered exit to Research (range 10) 31032 | -3/Garrison | Attempted to access garrison exit controls, blocked by remote lockdown 31160 | -3/Garrison | Rewired B-90 Cyclops 31169 | -3/Garrison | Allies destroyed B-90 Cyclops 31348 | -3/Garrison | Entered Research 31348 | -2/Research | Accompanied by 1 ally 31349 | -2/Research | Identified exit to Access 31349 | -2/Research | Identified exit to Testing 31350 | -2/Research | Loaded intel: 89 trap records 31350 | -2/Research | Reached level 31 31542 | -2/Research | Spotted B-90 Cyclops 31680 | -2/Research | Scrapoids reinforcements arrived? 31802 | -2/Research | Destroyed 7 combat bots 31823 | -2/Research | Reached level 32 31855 | -2/Research | Expert System configures itself against Swarmer targets 31870 | -2/Research | Core integrity fell below 50% 31884 | -2/Research | Core integrity fell below 20% 31909 | -2/Research | Destroyed 9 combat bots 32117 | -2/Research | Found Prototype Device 32253 | -2/Research | Upgraded with Power slot (x1) 32253 | -2/Research | Found Prototype Reactor 32253 | -2/Research | Identified Singularity Reactor 32394 | -2/Research | Scrapoids reinforcements arrived? 32612 | -2/Research | Identified Adv. EM Shield 32848 | -2/Research | First assault squad dispatched 33282 | -2/Research | Found Prototype Processor 33282 | -2/Research | Identified Exp. Terrain Scan Processor 33585 | -2/Research | Spotted B-90 Cyclops 33586 | -2/Research | Incoming assault squad redirected 33620 | -2/Research | High security lockdown imminent 33624 | -2/Research | Reached level 33 33649 | -2/Research | Destroyed by TH-DR0N3 "Hotstuff" with Thermal Shotgun Last Messages --------------- 33620_ ALERT: High security lockdown imminent, T-100. 33620_ Switching to secondary target: S-43 Plague. 33624_ Slug penetrates S-43 Plague. 33624_ Reached level 33. 33624_ S-43 Plague destroyed. 33624_ Slug penetrates Earth. 33632_ Slug penetrates Wall. 33636_ Critical hit (Burn: +50). 33643_ Slug penetrates Wall. 33643_ Slug penetrates TH-DR0N3 "Hotstuff". 33643_ TH-DR0N3 "Hotstuff" suffers critical hit (Destroy). 33643_ Destroyed Exp. Heat Sink. 33643_ Slug penetrates Wall. 33645_ Critical hit (Burn: +50). 33647_ Slug penetrates TH-DR0N3 "Hotstuff". 33647_ TH-DR0N3 "Hotstuff" destroyed. 33647_ Switching to secondary target: EM-DR0N3 "Zapster". 33647_ Slug penetrates EM-DR0N3 "Zapster". 33647_ EM-DR0N3 "Zapster" destroyed. 33647_ Critical hit (Burn: +50). Map ----- +----------------------------------------------------+ | #???????????????#### #####??## # #? | | #????????????#+#?### "#%#####"## #? | | #????????????# ? + ## ! ### " #? | | #????????????? ? # # ] #?# "%"#? | | #??????????????!=? # # !]#?# " #? | | #??????????????? + / ]]### #? | | /??????????????? ## # "## #? | | #???????????????? ?# # # # ## | | #????????????????? ## ###########" "# | | #????????????######"# #?????????## " | | #????????????# # #?????????## = " | | #????????????# + #???????? "" %[ # | | ##+#?##+##???# # #########"*%%= " | | ### #???# # ## /=% " | | *##?## ]# ## ### ## | | ########^ "###" # ## #?# #? | | ##+#"########### ## #?# #? | | # ##?????## #; #?# #? | | """ # #???????# % ;# +? #? | | """ # #?#########+##### #;###+###?## #? | | """ # #?# ; ;##?? ???# #? | | =""" # #?# # ;##g #??? #? | | %%""" # #?# ; H g #???#####? | | = [ =*####"##### !=[ n;;###! ]#????????? | | =* ####x### # !=[ ; #???????????????? | | == =# #"# # != @ ##?????????????????? | | #########!#[""######""" """####??????????????????? | | ???# !%[ #"""T"""#?????????????????????? | | ???# = #########?????????????????????? | | ???#"" #?????????????????????????????? | | ???#"T #?????????????????????????????? | | ???#"" o #?????????????????????????????? | | ???# ][= #?????????????????????????????? | | ???# [[= #?????????????????????????????? | | ???# [[ #?????????????????????????????? | | ???# #?????????????????????????????? | | ???# [ #?????????????????????????????? | | ???########+########?????????????????????????????? | | ?????????????????????????????????????????????????? | | ?????????????????????????????????????????????????? | | ?????????????????????????????????????????????????? | | ?????????????????????????????????????????????????? | | ?????????????????????????????????????????????????? | | ?????????????????????????????????????????????????? | | ?????????????????????????????????????????????????? | | ?????????????????????????????????????????????????? | | ?????????????????????????????????????????????????? | | ?????????????????????????????????????????????????? | | ?????????????????????????????????????????????????? | | ?????????????????????????????????????????????????? | +----------------------------------------------------+ Best States ------------- Heat Dissipation 91 Energy Generation 80 Energy Capacity 1150 Matter Stores 550 Matter Capacity 550 Sight Range 17 Robot Scan Range 18 Terrain Scan Density 10 Jamming Range 16 Corruption Containment 12 Corruption Block 20 Armor Coverage 225 Weapon Cycling 25 Phase Shifting 15 Evasion (%) 57 Targeting Accuracy 32 Core Analysis 8 Recoil Reduction 4 Kinecelleration 40 Offensive Hacking 44 Defensive Hacking 24 Authchip Count 3 Item Schematics ----------------- Assault Rifle | -10/Mines | Hacked Wheel | -10/Mines | Hacked Imp. EM Shotgun | -9/Materials | Extracted Salvage Targeting Computer | -9/Materials | Extracted Hvy. Assault Rifle | -9/Materials | Extracted VTOL Module | -9/Materials | Extracted Imp. Power Shielding | -8/Materials | Extracted Signal Interpreter | -8/Materials | Extracted Hvy. Particle Gun | -8/Materials | Extracted Target Analyzer | -8/Materials | Extracted Cooling System | -8/Materials | Extracted Arm. Treads | -8/Materials | Extracted Imp. Heat Sink | -8/Materials | Extracted Recoil Stabilizer | -8/Materials | Extracted Lgt. Nuclear Core | -8/Materials | Extracted Imp. Flight Unit | -8/Materials | Extracted Visual Processing Unit | -8/Materials | Extracted Hardlight Generator | -8/Materials | Extracted Aerolev Unit | -8/Materials | Extracted Imp. Weapon Shielding | -8/Materials | Extracted Mak. Coolant Network | -8/Scraptown | Extrapolated 0b10 Decoder Chip [Generic] | -6/Factory | Extrapolated Spk. Treads | -6/Factory | Extrapolated F-cell Engine | -6/Factory | Scanalyzed System Restoration Module | -6/Factory | Scanalyzed 0b10 Decoder Chip [Scout] | -6/Factory | Extrapolated 0b10 Decoder Chip [Skirmisher] | -6/Factory | Extrapolated Deep Structural Scanner | -6/Factory | Extrapolated Tactical Coordination Suite | -6/Factory | Extrapolated Energy Deflector | -6/Factory | Extrapolated Mak. Leg | -6/Factory | Extrapolated Machine Rigger | -6/Factory | Extrapolated Beamcaster | -6/Factory | Extrapolated Mak. Spear | -6/Factory | Extrapolated Spk. Medium Treads | -6/Factory | Extrapolated Imp. System Restoration Module | -6/Factory | Scanalyzed Machine Analyzer | -6/Factory | Extracted Adv. Targeting Computer | -6/Factory | Extracted Hvy. Flak Cannon | -6/Factory | Extracted Fusion Compressor | -6/Factory | Extracted Mic. Nuclear Core | -6/Factory | Extracted Mak. System Restoration Module | -6/Factory | Extrapolated Lrn. Proton Cannon | -6/Factory | Hacked Mak. Heavy Armor Plating | -6/Factory | Extrapolated Bore Cannon | -6/Factory | Extrapolated Multitool | -6/Factory | Extrapolated Mak. Trap Scanner | -6/Factory | Extrapolated Great Maul | -6/Factory | Extracted Hpw. Tractor Beam | -6/Factory | Extracted Lgt. Angular Momentum Engine | -6/Factory | Extracted Gravmag Array | -6/Factory | Extracted Imp. Medium Armor Plating | -6/Factory | Extracted Magnetic Acceleration Cannon | -6/Factory | Extracted Powered Armor | -6/Factory | Extracted Mak. Core Shielding | -6/Lower Caves | Extrapolated Mak. Medium Armor Plating | -6/Lower Caves | Extrapolated Mak. Ablative Armor | -6/Lower Caves | Extrapolated Mak. Axe | -6/Lower Caves | Extrapolated Mak. Targeting Computer | -6/Lower Caves | Extrapolated Mak. Light Armor Plating | -6/Lower Caves | Extrapolated Hvy. Battle Rifle | -6/Lower Caves | Extrapolated Heat Bomb Trap | -6/Lower Caves | Extrapolated Hvy. Beamcaster | -6/Lower Caves | Extrapolated Combat Drone Bay | -6/Data Miner | Free Lgt. Regenerative Plating | -6/Data Miner | Free Cld. Gravmag System | -6/Data Miner | Free Hvy. Gatling Laser | -6/Data Miner | Free Imp. Gyrokinetic Inverter | -6/Data Miner | Free Imp. Energy Well | -6/Data Miner | Free Adv. Thermal Shield | -6/Data Miner | Free Railgun | -6/Data Miner | Free Imp. Arc Projector | -6/Data Miner | Free Imp. Cloaking Device | -6/Data Miner | Free Adv. Recalibrator | -6/Data Miner | Free Enh. Flamer | -5/Factory | Extrapolated Spk. Heavy Treads | -5/Factory | Extrapolated Enh. Fission Core | -5/Factory | Scanalyzed Mak. Thermal Plating | -5/Factory | Extrapolated Mak. Kinetic Plating | -5/Factory | Extrapolated Mak. Terrain Scan Processor | -5/Factory | Extrapolated Mak. Transmission Jammer | -5/Factory | Extrapolated Mapping Drone Bay | -5/Factory | Extrapolated Enh. Gauss Cannon | -5/Factory | Extracted Mak. Weapon Shielding | -5/Warlord | Extrapolated Mak. Hacking Suite | -5/Warlord | Extrapolated Mak. System Shield | -5/Warlord | Extrapolated Arc Thrower | -5/Warlord | Extrapolated Imp. Arc Thrower | -5/Warlord | Extrapolated Mak. Salvage Targeting Computer | -5/Warlord | Extrapolated Mak. Flight Unit | -5/Warlord | Extrapolated Mak. Laser | -5/Warlord | Extrapolated Mak. Shrapnel Gun | -5/Warlord | Extrapolated Plasma Flamer | -5/Warlord | Extrapolated Mak. Hammer | -5/Warlord | Extrapolated Mak. Propulsion Shielding | -4/Factory | Extrapolated Mak. Sensor Array | -4/Factory | Extrapolated Mak. Terrain Scanner | -4/Factory | Extrapolated Centrium Wheel | -4/Factory | Hacked Multireflex Exoskeleton | -4/Factory | Extrapolated Imp. Transmission Jammer | -4/Factory | Scanalyzed Enh. Multireflex Exoskeleton | -4/Factory | Extrapolated Adv. Medium Treads | -4/Factory | Hacked Wartreads | -4/Factory | Extrapolated Mak. ECM Suite | -4/Factory | Extrapolated Mak. Hover Unit | -4/Extension | Extrapolated Enh. Nova Cannon | -4/Hub_04(d) | Hacked 0b10 Decoder Chip [Looter] | -3/Quarantine | Extrapolated Robot Schematics ------------------ E-15 Imp | -6/Data Miner | Free M-22 Extractor | -6/Data Miner | Free Y-54 Guardian | -6/Data Miner | Free Fabricated ------------ Ragnarok Missile Launcher | x1 | -5/Factory | Preloaded Centrium Wheel | x2 | -4/Factory | Authchip Centrium Wheel | x2 | -4/Factory | Authchip Wartreads | x2 | -4/Factory | Authchip Wartreads | x2 | -4/Factory | Authchip Repaired ---------- Com. Particle Reactor | 36% | -3/Research Studied --------- Wheel | -9/Materials | Hacked Hvy. Assault Rifle | -8/Materials | Hacked Gauss Rifle | -6/Factory | Hacked KE Penetrator | -5/Factory | Hacked Railgun | -4/Factory | Hacked Alien Tech Used ----------------- Dimensional Node Initializer Transdimensional Reconstructor Achievements -------------- Brother of Steel Deadly Precision Hulk Smash Challenges ------------ None RPGLIKE | -11 -10 -10 -9 -9 -8 -8 -8 -8 -6 -6 -6 -6 -5 -5 -5 -5 -5 -4 -4 -4 -4 -4 -4 -4 -4 -4 -3 -3 -3 -2 --------- Run | Yrd Mat Min Mat Min Mat Sto Rec Scr Fac Low Low Dat Pro Fac Upp Upp War Pro Fac Was Fac Ext Cet Arc Hub Gar Res Qua Gar Res Levels Raised 32 | . 2 1 4 1 3 1 1 . 4 1 . . 1 3 . . 1 1 1 . 1 1 . . . . 1 1 . 3 XP Earned 51004 | 3000 3400 1100 6768 868 5012 1623 1077 210 6139 1026 688 220 1810 3299 565 450 1182 997 1459 48 1493 1123 284 168 444 443 1384 864 603 3257 XP Spent 47900 | 2550 2750 . 6450 2100 3700 2300 . 2600 3500 3200 320 . . 6475 . . 1155 . . . 4900 . 500 . . . . 3750 250 1400 Upgrades 67 | 7 4 . 22 2 2 1 . 1 2 1 2 . . 4 . . 8 . . . 2 . 1 . . . . 2 1 5 Power Slot 2 | . . . . . . . . . . . . . . . . . . . . . . . 1 . . . . . . 1 Propulsion Slot 3 | 1 . . 1 . . . . . . . . . . . . . . . . . 1 . . . . . . . . . Utility Slot 12 | 1 2 . 1 . 2 1 . 1 1 1 . . . 1 . . . . . . 1 . . . . . . . . . Weapon Slot 3 | 1 1 . . 1 . . . . . . . . . . . . . . . . . . . . . . . . . . Core Integrity 15 | . . . 6 . . . . . . . . . . . . . 5 . . . . . . . . . . . . 4 Heat Dissipation 11 | . 1 . 4 . . . . . . . 2 . . . . . 3 . . . . . . . . . . . 1 . Energy Generation 1 | . . . 1 . . . . . . . . . . . . . . . . . . . . . . . . . . . Energy Storage 1 | . . . 1 . . . . . . . . . . . . . . . . . . . . . . . . . . . Matter Storage 2 | . . . 1 . . . . . . . . . . 1 . . . . . . . . . . . . . . . . Mass Support 2 | . . . 1 . . . . . 1 . . . . . . . . . . . . . . . . . . . . . Inventory Capacity 8 | 1 . . 2 1 . . . . . . . . . 2 . . . . . . . . . . . . . 2 . . Sight Range 1 | . . . 1 . . . . . . . . . . . . . . . . . . . . . . . . . . . Ranged Accuracy 2 | 1 . . 1 . . . . . . . . . . . . . . . . . . . . . . . . . . . Hack Attack % 2 | 1 . . 1 . . . . . . . . . . . . . . . . . . . . . . . . . . . Hack Defense % 2 | 1 . . 1 . . . . . . . . . . . . . . . . . . . . . . . . . . . Protomatter Created 9372 | . 264 35 800 61 510 182 86 154 418 267 52 . 185 801 295 185 689 352 375 169 241 326 119 137 71 396 193 485 666 858 Integrity Restored 20165 | . 578 105 1301 39 834 338 45 129 1269 597 180 . 511 1037 583 200 778 184 768 79 972 1523 644 94 92 986 805 1501 1775 2218 Core 16441 | . 567 105 1061 39 637 184 34 129 1153 522 146 . 309 974 361 104 628 172 654 29 946 985 386 40 78 793 750 1472 1107 2076 Parts 3724 | . 11 . 240 . 197 154 11 . 116 75 34 . 202 63 222 96 150 12 114 50 26 538 258 54 14 193 55 29 668 142 Protomatter Decayed 10378 | . 42 52 174 14 340 21 170 3211 142 . 28 . . 457 53 65 657 162 280 2 380 . 12 204 282 276 2653 64 129 508 Game ------ Seed InsulatedDerelictCore Manual? 0 Play Time 06:38:58 Cumulative 386.4 hours Start 2026.07.04 @ 09:36:22 End 2026.07.04 @ 21:05:38 Sessions 1 Manual Loads 0 Difficulty Rogue Special Mode Winter2019/RPGLIKE Game No. 154 Rogue 106 Adventurer 44 Explorer 4 Win Type - Total 11 Types 4/3/0/1/1/1/0/1/0/0 Lore% 83 Gallery% 69 Achievement% 58 Wizard Run 0 Options --------- Layout 0 ASCII 0 Keyboard 0 Movement Arrows Keybinds 0 Fullscreen 2 Font 18/SmallcapsGlow Map View 76x50 Zoom Use 0% Tactical HUD 1 Map Filters NONE Filters NONE Steam 1 RUN: fbd8f80e-5f88-476a-8485-f3e5b91a77ce